Workbook

Sheet M7V-spec (hidden)
A2: M7V Ordering Code
B5: Please fill in the Inquiry Form on page 39 in order to specify the requirement.
D6: 1 | F6: 2 | G6: 3 | H6: 4 | I6: 5 | J6: 6 | L6: 7 | M6: 8 | N6: 9 | O6: 10 | P6: 11 | Q6: 12 | R6: 13 | S6: 14 | U6: 15
D7: M7V | F7: 112 | G7: A | H7: A | I7: 1 | J7: 1 | K7: - | L7: A | M7: A | N7: 1 | O7: T1 | P7: X | Q7: X | R7: X | S7: N | T7: - | U7: 1
AN8: =IF(M7V!AG1="Language : English","General(Other)","一般(その他)") -> General(Other)
A9: 1 | B9: M7V Series | AN9: =IF(M7V!AG1="Language : English","Travel(Closed)","走行(クローズド)") -> Travel(Closed) | AO9: =IF(M7V!AG1="Language : English","For travel (closed) applications, the motor may require flushing valve to prevent high temperature inside the system.","走行(クローズド)用途では、システム内部の高温を防止するために、モータにフラッシングバルブが必要になる場合があります。") -> For travel (closed) applications, the motor may require flushing valve to prevent high temperature inside the system.
B10: M7V Series, Variable Displacement, Axial Piston Motor, Applicable in Both Open and Closed Loops | AN10: =IF(M7V!AG1="Language : English","Travel(Open)","走行(オープン)") -> Travel(Open) | AO10: =IF(M7V!AG1="Language : English","For travel (open) applications, the motor may require counterbalance valves (both directions) to prevent cavitation inside the motor during braking.","走行(クローズド)用途では、ブレーキ時のモータ内部のキャビテーションを防止するために、モータにカウンターバランス弁(両方向)が必要になる場合があります。") -> For travel (open) applications, the motor may require counterbalance valves (both directions) to prevent cavitation inside the motor during braking.
AN11: =IF(M7V!AG1="Language : English","Hoist","巻上") -> Hoist | AO11: =IF(M7V!AG1="Language : English","For hoist applications, the motor may require counterbalance valves (one directions) to prevent cavitation inside the motor during braking.","巻上用途では、ブレーキ時に発生するモータ内部のキャビテーションを防止するために、カウンターバランス弁(片方向)が必要になる場合があります。") -> For hoist applications, the motor may require counterbalance valves (one directions) to prevent cavitation inside the motor during braking.
A12: 2 | B12: Size | T12: 85 | U12: 112 | V12: 160 | W12: 212 | AN12: =IF(M7V!AG1="Language : English","Swing","旋回") -> Swing | AO12: =IF(M7V!AG1="Language : English","For swing applications, the motor may require counterbalance valves (for swing) to prevent cavitation inside the motor during braking.","旋回用途では、ブレーキ時に発生するモータ内部のキャビテーションを防止するために、カウンターバランス弁(旋回用)が必要になる場合があります。") -> For swing applications, the motor may require counterbalance valves (for swing) to prevent cavitation inside the motor during braking.
B13: Standard Size | T13: ● | U13: ● | V13: ● | W13: ●
A15: 3 | B15: Series Specifications | T15: 85 | U15: 112 | V15: 160 | W15: 212
B16: A | D16: Standard | T16: ● | U16: ● | V16: ● | W16: ●
A18: 4 | B18: Mounting Flange and Port Position
D19: Mounting | M19: Port position | T19: 85 | U19: 112 | V19: 160 | W19: 212
B20: A | D20: SAE J744, 2-bolt Mount | M20: Rear | T20: ● | U20: ● | V20: ● | W20: ○ | AA20: A | AB20: =HLOOKUP(M7V!$AD$40,'M7V-spec'!$T$19:$W$25,2,0) -> ● | AC20: =VLOOKUP(M7V!AD45,AA20:AB25,2,0) -> ● | AE20: =M7V!AD45&M7V!AD54&M7V!AD57 -> A11 | AF20: =VLOOKUP(AE20,Com!E1:F216,2,0) -> ○
B21: B | D21: SAE J744, 4-bolt Mount | M21: Side | T21: ● | U21: ● | V21: ● | W21: ○ | AA21: B | AB21: =HLOOKUP(M7V!$AD$40,'M7V-spec'!$T$19:$W$25,3,0) -> ●
B22: C | D22: ISO 3019-2, 4-bolt Mount | M22: Rear | T22: ● | U22: ● | V22: ● | W22: ● | AA22: C | AB22: =HLOOKUP(M7V!$AD$40,'M7V-spec'!$T$19:$W$25,4,0) -> ●
B23: D | D23: ISO 3019-2, 4-bolt Mount | M23: Side | T23: ● | U23: ● | V23: ● | W23: ● | AA23: D | AB23: =HLOOKUP(M7V!$AD$40,'M7V-spec'!$T$19:$W$25,5,0) -> ●
B24: E | D24: SAE J744, 4-bolt Mount | M24: Rear | T24: ● | U24: - | V24: - | W24: - | AA24: E | AB24: =HLOOKUP(M7V!$AD$40,'M7V-spec'!$T$19:$W$25,6,0) -> ●
B25: F | D25: SAE J744, 4-bolt Mount | M25: Side | T25: ● | U25: - | V25: - | W25: - | AA25: F | AB25: =HLOOKUP(M7V!$AD$40,'M7V-spec'!$T$19:$W$25,7,0) -> ●
A27: 5 | B27: Port and Flange Fixing Thread
D28: Threaded Port Type | M28: Flange Fixing Thread Type | T28: 85 | U28: 112 | V28: 160 | W28: 212
B29: 1 | D29: ANSI ISO11926 | M29: ANSI ASMEB1.1 | T29: ● | U29: ● | V29: ● | W29: ○ | AA29: 1 | AB29: =HLOOKUP(M7V!$AD$40,'M7V-spec'!T28:W32,2,0) -> ● | AC29: =VLOOKUP(M7V!AD54,AA29:AB30,2,0) -> ●
B30: 2 | D30: ANSI ISO11926 | M30: Metric ISO724 | T30: ○ | U30: ○ | V30: ○ | W30: ○ | AA30: 4 | AB30: =HLOOKUP(M7V!$AD$40,'M7V-spec'!T28:W32,5,0) -> ●
B31: 3 | D31: Metric ISO6149 | M31: Metric ISO724 | T31: ○ | U31: ○ | V31: ○ | W31: ○
B32: 4 | D32: Parallel Piping ISO228 | M32: Metric ISO724 | T32: ● | U32: ● | V32: ● | W32: ●
A34: 6 | B34: Shaft End
D35: Standard | M35: Specifications | T35: 85 | U35: 112 | V35: 160 | W35: 212
B36: 1 | D36: ANSI B92.1 | M36: 1 1/2 in 17T 12/24DP | T36: ● | U36: - | V36: - | W36: - | AA36: 1 | AB36: =HLOOKUP(M7V!$AD$40,'M7V-spec'!$T$35:$W$44,2,0) -> ● | AC36: =VLOOKUP(M7V!AD57,AA36:AB44,2,0) -> ●
B37: 2 | D37: ANSI B92.1 | M37: 1 3/4 in 13T 8/16DP | T37: - | U37: ● | V37: ● | W37: - | AA37: 2 | AB37: =HLOOKUP(M7V!$AD$40,'M7V-spec'!$T$35:$W$44,3,0) -> -
B38: 3 | D38: ANSI B92.1 | M38: 2 in 15T 8/16DP | T38: - | U38: - | V38: ● | W38: ○ | AA38: 3 | AB38: =HLOOKUP(M7V!$AD$40,'M7V-spec'!$T$35:$W$44,4,0) -> -
B39: 4 | D39: ANSI B92.1 | M39: 1 3/8 in 21T 16/32DP | T39: ● | U39: - | V39: - | W39: - | AA39: 4 | AB39: =HLOOKUP(M7V!$AD$40,'M7V-spec'!$T$35:$W$44,5,0) -> ●
B40: 5 | D40: DIN5480 | M40: W35×2×16×9 g | T40: ● | U40: - | V40: - | W40: - | AA40: 5 | AB40: =HLOOKUP(M7V!$AD$40,'M7V-spec'!$T$35:$W$44,6,0) -> ●
B41: 6 | D41: DIN5480 | M41: W40×2×18×9 g | T41: ● | U41: ● | V41: - | W41: - | AA41: 6 | AB41: =HLOOKUP(M7V!$AD$40,'M7V-spec'!$T$35:$W$44,7,0) -> ●
B42: 7 | D42: DIN5480 | M42: W45×2×21×9 g | T42: - | U42: ● | V42: ● | W42: - | AA42: 7 | AB42: =HLOOKUP(M7V!$AD$40,'M7V-spec'!$T$35:$W$44,8,0) -> -
B43: 8 | D43: DIN5480 | M43: W50×2×24×9 g | T43: - | U43: - | V43: ● | W43: ● | AA43: 8 | AB43: =HLOOKUP(M7V!$AD$40,'M7V-spec'!$T$35:$W$44,9,0) -> -
B44: 9 | D44: ANSI B92.1 | M44: 1 1/4 in 14T 12/24DP | T44: ● | U44: - | V44: - | W44: - | AA44: 9 | AB44: =HLOOKUP(M7V!$AD$40,'M7V-spec'!$T$35:$W$44,10,0) -> ●
A46: 7 | B46: Maximum Displacement | AA46: QMAX | AH46: QMIN
B47: Size | C47: 85 | D47: A ： 85 | E47: ● | F47: B ： 80 | G47: ● | H47: C ： 75 | I47: ● | J47: D ： 70 | K47: ● | AB47: 85 | AC47: 112 | AD47: 160 | AE47: 212 | AI47: 85 | AJ47: 112 | AK47: 160 | AL47: 212
C48: 112 | D48: A ： 112 | E48: ● | F48: B ： 107 | G48: ● | H48: C： 100 | I48: ● | J48: D ： 95 | K48: ● | AA48: A | AB48: 85 | AC48: 112 | AD48: 160 | AE48: 215 | AF48: =HLOOKUP(M7V!$AD$40,$AB$47:$AE$52,2,0) -> 85 | AH48: A | AI48: 51 | AJ48: 68 | AK48: 96 | AL48: 86 | AM48: =HLOOKUP(M7V!$AD$40,$AI$47:$AL$52,2,0) -> 51
C49: 160 | D49: A ： 160 | E49: ● | F49: B ： 155 | G49: ● | H49: C： 150 | I49: ● | J49: D ： 140 | K49: ● | AA49: B | AB49: 80 | AC49: 107 | AD49: 155 | AE49: 200 | AF49: =HLOOKUP(M7V!$AD$40,$AB$47:$AE$52,3,0) -> 80 | AH49: B | AI49: 40 | AJ49: 50 | AK49: 80 | AL49: 70 | AM49: =HLOOKUP(M7V!$AD$40,$AI$47:$AL$52,3,0) -> 40
C50: 212 | D50: A ： 215 | E50: ● | F50: B ： 200 | G50: ● | H50: C ： 190 | I50: ● | J50: D ： 180 | K50: ● | AA50: C | AB50: 75 | AC50: 100 | AD50: 150 | AE50: 190 | AF50: =HLOOKUP(M7V!$AD$40,$AB$47:$AE$52,4,0) -> 75 | AH50: C | AI50: 30 | AJ50: 40 | AK50: 60 | AL50: 60 | AM50: =HLOOKUP(M7V!$AD$40,$AI$47:$AL$52,4,0) -> 30
AA51: D | AB51: 70 | AC51: 95 | AD51: 140 | AE51: 180 | AF51: =HLOOKUP(M7V!$AD$40,$AB$47:$AE$52,5,0) -> 70 | AH51: D | AI51: - | AJ51: 30 | AK51: 40 | AL51: - | AM51: =HLOOKUP(M7V!$AD$40,$AI$47:$AL$52,5,0) -> -
A52: 8 | B52: Minimum Displacement | AF52: =VLOOKUP(M7V!AD66,AA48:AF51,6,0) -> 85 | AH52: E | AI52: - | AJ52: 22 | AK52: 32 | AL52: - | AM52: =HLOOKUP(M7V!$AD$40,$AI$47:$AL$52,6,0) -> -
B53: Size | C53: 85 | D53: A ： 51 | E53: ● | F53: B ： 40 | G53: ● | H53: C ： 30 | I53: ● | J53: D ： - | K53: - | L53: E ： - | M53: - | AM53: =VLOOKUP(M7V!AD67,AH48:AM52,6,0) -> 51
C54: 112 | D54: A ： 68 | E54: ● | F54: B ： 50 | G54: ● | H54: C ： 40 | I54: ● | J54: D ： 30 | K54: ● | L54: E ： 22 | M54: ●
C55: 160 | D55: A ： 96 | E55: ● | F55: B ： 80 | G55: ● | H55: C ： 60 | I55: ● | J55: D ： 40 | K55: ● | L55: E ： 32 | M55: ●
C56: 212 | D56: A ： 86 | E56: ● | F56: B ： 70 | G56: ● | H56: C ： 60 | I56: ● | J56: D ： - | K56: - | L56: E ： - | M56: -
A58: 9 | B58: Speed Sensor | T58: 85 | U58: 112 | V58: 160 | W58: 212
B59: 1 | D59: Without Speed Sensor | T59: ● | U59: ● | V59: ● | W59: ●
B60: 2 | D60: With Speed Sensor (A port side) | T60: ● | U60: ● | V60: ● | W60: ●
B61: B | D61: With Speed Sensor (B port side) | T61: ● | U61: ● | V61: ● | W61: ●
A63: 10 | B63: Regulator (See the table on page 11 for the possible combinations of regulator and optional valve options.) | T63: 85 | U63: 112 | V63: 160 | W63: 212
B64: T | C64: T1 | D64: Electric Two Position Displacement control | I64: Electric Control, 24 V | T64: ● | U64: ● | V64: ● | W64: ● | AA64: =M7V!AD71&M7V!AD85 -> T1X | AB64: =VLOOKUP(AA64,Com!P1:Q56,2,0) -> ○ | AC64: =VLOOKUP('M7V-spec'!AA64,Com!S1:T28,2,0) -> 1
C65: T2 | I65: Electric Control, 12 V | T65: ● | U65: ● | V65: ● | W65: ●
B66: y | C66: Y1 | D66: Hydraulic Two Position Displacement Control | I66: Negative Control | T66: ● | U66: ● | V66: ● | W66: ●
B67: E | C67: E1 | D67: Electric Proportional Control | I67: Negative Control, 24V | T67: ● | U67: ● | V67: ● | W67: ●
C68: E2 | I68: Positive Control, 24V | T68: ● | U68: ● | V68: ● | W68: ●
C69: E3 | I69: Negative Control, 12V | T69: ● | U69: ● | V69: ● | W69: ●
C70: E4 | I70: Positive Control, 12V | T70: ● | U70: ● | V70: ● | W70: ●
B71: P | C71: P1 | D71: Hydraulic Proportional control | I71: Negative Control, Pi = 2.5MPa | T71: ● | U71: ● | V71: ● | W71: ●
C72: P2 | I72: Positive Control, Pi = 2.5MPa | T72: ● | U72: ● | V72: ● | W72: ●
C73: P3 | I73: Negative Control, Pi = 1.0MPa | T73: ● | U73: ● | V73: ● | W73: ●
C74: P4 | I74: Positive Control, Pi = 1.0MPa | T74: ● | U74: ● | V74: ● | W74: ●
B75: H | C75: H1 | D75: Pressure Related Control | I75: Without Pressure Increase | T75: ● | U75: ● | V75: ● | W75: ●
C76: H2 | I76: With Pressure Increase | T76: ● | U76: ● | V76: ● | W76: ●
C77: H3 | I77: With Pressure Increase and Hydraulic Remote Control | T77: ● | U77: ● | V77: ● | W77: ●
A79: 11 | B79: Optional Valves | E79: (See the table on page 11 for the possible combinations of optional valve and regulator options.) | T79: 85 | U79: 112 | V79: 160 | W79: 212
B80: X | C80: X | D80: Without Any Optional Valve | T80: ● | U80: ● | V80: ● | W80: ●
B81: A | C81: A1 | D81: Pressure Control Valve | I81: With Pressure Control Valve | T81: ● | U81: ● | V81: ● | W81: ●
B82: B | C82: B1 | D82: Two Position Displacement Control | I82: With Electric Two-Position Control Valve, 24 V | T82: ● | U82: ● | V82: ● | W82: ●
C83: B2 | I83: With Electric Two-Position Control Valve, 12 V | T83: ● | U83: ● | V83: ● | W83: ●
A85: 12 | B85: Accessories | T85: 85 | U85: 112 | V85: 160 | W85: 212
B86: X | D86: Without Any Accessory | T86: ● | U86: ● | V86: ● | W86: ● | AA86: X | AB86: =HLOOKUP(M7V!$AD$40,'M7V-spec'!$T$85:$W$88,2,0) -> ● | AC86: =VLOOKUP(M7V!AD89,AA86:AB88,2,0) -> ● | AE86: X | AF86: a | AG86: =VLOOKUP(M7V!AD89,AE86:AF88,2,0) -> a
B87: 1 | D87: Without Flushing Spool | T87: ● | U87: ● | V87: ● | W87: ● | AA87: 1 | AB87: =HLOOKUP(M7V!$AD$40,'M7V-spec'!$T$85:$W$88,3,0) -> ● | AE87: 1 | AF87: b
B88: 2 | D88: With Low Pressure Relief Valve | T88: ○ | U88: ○ | V88: ○ | W88: ○ | AA88: 2 | AB88: =HLOOKUP(M7V!$AD$40,'M7V-spec'!$T$85:$W$88,4,0) -> ○ | AE88: 2 | AF88: c
A90: 13 | B90: Counter Balance Valve | T90: 85 | U90: 112 | V90: 160 | W90: 212
B91: X | D91: Without Counter Balance Valve | T91: ● | U91: ● | V91: ● | W91: ● | AA91: X | AB91: =HLOOKUP(M7V!$AD$40,'M7V-spec'!$T$90:$W$93,2,0) -> ● | AC91: =VLOOKUP(M7V!AD93,AA91:AB93,2,0) -> ● | AE91: X | AF91: a | AG91: =VLOOKUP(M7V!AD93,AE91:AF93,2,0) -> a
B92: 1 | D92: With Counter Balance Valve | I92: Hoist : CW rotation (port A inlet) | O92: viewed from the shaft end | T92: ○ | U92: ○ | V92: ○ | W92: ○ | AA92: 1 | AB92: =HLOOKUP(M7V!$AD$40,'M7V-spec'!$T$90:$W$93,3,0) -> ○ | AE92: 1 | AF92: b
B93: 2 | D93: With Counter Balance Valve | I93: Hoist : CCW rotation (port B inlet) | O93: viewed from the shaft end | T93: ○ | U93: ○ | V93: ○ | W93: ○ | AA93: 2 | AB93: =HLOOKUP(M7V!$AD$40,'M7V-spec'!$T$90:$W$93,4,0) -> ○ | AE93: 2 | AF93: b
A95: 14 | B95: Response Speed of Control | T95: 85 | U95: 112 | V95: 160 | W95: 212
B96: N | D96: Standard | T96: ● | U96: ● | V96: ● | W96: ●
A98: 15 | B98: Design Code | T98: 85 | U98: 112 | V98: 160 | W98: 212
B99: ** | D99: 01~ | T99: ● | U99: ● | V99: ● | W99: ●
B102: ● ＝ Available | G102: ○ ＝ Under Development | L102: ― ＝ Not Available
B104: ★ M7V Control Options | O104: Options for Optional Valves (Code [11]) | AB104: qmax | AC104: qmax | AD104: qmin | AE104: q100 | AF104: q60
B105: Note: Control options are common to all M7V motors | O105: Without Any Optional Valve | Q105: With Cut-Off Valve | S105: With Electric Two-Position Control Valve (24V) | U105: With Electric Two-Position Control Valve (12V) | AA105: 85 | AB105: =IF(AC105<AE105,AE105,AC105) -> 6150 | AC105: =IF(M7V!AF16=AC117,AE105,IF(M7V!AF16<0.6*AC117,AF105,IF(M7V!AF16>0.94*AC117,AE105,326000/M7V!AF16))) -> 6150 | AD105: =IF(M7V!AI16=AC117,AE105,IF(M7V!AI16<0.6*AC117,AF105,IF(M7V!AI16>0.94*AC117,AE105,326000/M7V!AI16))) -> 6150 | AE105: 3900 | AF105: 6150
B106: Options for Regulator (Code[10]) | O106: X | Q106: A1 | S106: B1 | U106: B2 | AA106: 112 | AB106: =IF(AC106<AE106,AE106,AC106) -> 5600 | AC106: =IF(M7V!AF16=AC117,AE106,IF(M7V!AF16<0.6*AC117,AF106,IF(M7V!AF16>0.96*AC117,AE106,380800/M7V!AF16))) -> 5600 | AD106: =IF(M7V!AI16=AC117,AE106,IF(M7V!AI16<0.6*AC117,AF106,IF(M7V!AI16>0.96*AC117,AE106,380800/M7V!AI16))) -> 5600 | AE106: 3550 | AF106: 5600
B107: T | C107: T1 | D107: Two Position Displacement Control | H107: Electric Control, 24 V | O107: ● | Q107: - | S107: - | U107: - | AA107: 160 | AB107: =IF(AC107<AE107,AE107,AC107) -> 4900 | AC107: =IF(M7V!AF16=AC117,AE107,IF(M7V!AF16<0.6*AC117,AF107,IF(M7V!AF16>0.95*AC117,AE107,470400/M7V!AF16))) -> 4900 | AD107: =IF(M7V!AI16=AC117,AE107,IF(M7V!AI16<0.6*AC117,AF107,IF(M7V!AI16>0.95*AC117,AE107,470400/M7V!AI16))) -> 4900 | AE107: 3100 | AF107: 4900
C108: T2 | H108: Electric Control, 12 V | O108: ● | Q108: - | S108: - | U108: - | AA108: 212 | AB108: =IF(AC108<AE108,AE108,AC108) -> 4600 | AC108: =IF(M7V!AF16=AC117,AE108,IF(M7V!AF16<0.4*AC117,AF108,IF(M7V!AF16>0.63*AC117,AE108,395600/M7V!AF16))) -> 4600 | AD108: =IF(M7V!AI16=AC117,AE108,IF(M7V!AI16<0.4*AC117,AF108,IF(M7V!AI16>0.63*AC117,AE108,395600/M7V!AI16))) -> 4600 | AE108: 2900 | AF108: 4600
B109: y | C109: Y1 | D109: Hydraulic Two Position Displacement Control | H109: Negative Control | O109: ● | Q109: ● | S109: - | U109: - | AB109: =VLOOKUP(M7V!AD40,AA105:AD108,2,0) -> 6150 | AD109: =VLOOKUP(M7V!AD40,AA105:AD108,4,0) -> 6150
B110: E | C110: E1 | D110: Electric Proportional Control | H110: Negative Control, 24V | O110: ● | Q110: ● | S110: - | U110: -
C111: E2 | H111: Positive Control, 24V | O111: ● | Q111: ○ | S111: - | U111: -
C112: E3 | H112: Negative Control, 12V | O112: ● | Q112: ● | S112: - | U112: - | AB112: max. dis | AD112: min.dis | AF112: Nmax. | AG112: Nnom | AH112: Pmax | AI112: Pnom | AJ112: Qmax | AK112: Tmax | AL112: Cracking press
C113: E4 | H113: Positive Control, 12V | O113: ● | Q113: ○ | S113: - | U113: - | AA113: 85 | AB113: 68 | AC113: 88.5 | AD113: 0 | AE113: 68 | AF113: 6150 | AG113: 3900 | AH113: 45 | AI113: 40 | AJ113: 332 | AK113: 541 | AL113: 0.7 | AM113: 1.8
B114: P | C114: P1 | D114: Hydraulic Proportional Control | H114: Negative Control, Pi = 2.5MPa | O114: ● | Q114: ● | S114: - | U114: - | AA114: 112 | AB114: 90 | AC114: 112 | AD114: 0 | AE114: 90 | AF114: 5600 | AG114: 3550 | AH114: 45 | AI114: 40 | AJ114: 398 | AK114: 713 | AL114: 0.7 | AM114: 1.8
C115: P2 | H115: Positive Control, Pi = 2.5MPa | O115: ● | Q115: ○ | S115: - | U115: - | AA115: 160 | AB115: 128 | AC115: 160 | AD115: 0 | AE115: 128 | AF115: 4900 | AG115: 3100 | AH115: 45 | AI115: 40 | AJ115: 496 | AK115: 1019 | AL115: 0.65 | AM115: 0.9
C116: P3 | H116: Negative Control, Pi = 1.0MPa | O116: ● | Q116: ● | S116: - | U116: - | AA116: 212 | AB116: 170 | AC116: 215 | AD116: 0 | AE116: 170 | AF116: 4600 | AG116: 2900 | AH116: 50 | AI116: 42 | AJ116: 623 | AK116: 1437 | AL116: 0.65 | AM116: 0.9
C117: P4 | H117: Positive Control, Pi = 1.0MPa | O117: ● | Q117: ○ | S117: - | U117: - | AB117: =VLOOKUP(M7V!$AD$40,AA113:AB116,2,0) -> 68 | AC117: =VLOOKUP(M7V!$AD$40,AA113:AC116,3,0) -> 88.5 | AD117: =VLOOKUP(M7V!$AD$40,AA113:AD116,4,0) -> 0 | AE117: =VLOOKUP(M7V!$AD$40,AA113:AE116,5,0) -> 68 | AF117: =VLOOKUP(M7V!$AD$40,AA113:AF116,6,0) -> 6150 | AG117: =VLOOKUP(M7V!$AD$40,AA113:AG116,7,0) -> 3900 | AH117: =IF(AG91="a",(VLOOKUP(M7V!$AD$40,AA113:AH116,8,0)),34.3) -> 45 | AI117: =IF(AG91="a",(VLOOKUP(M7V!$AD$40,AA113:AI116,9,0)),34.3) -> 40 | AJ117: =VLOOKUP(M7V!$AD$40,AA113:AK116,10,0) -> 332 | AK117: =VLOOKUP(M7V!$AD$40,AA113:AK116,11,0) -> 541 | AL117: =VLOOKUP(M7V!$AD$40,AA113:AL116,12,0) -> 0.7 | AM117: =VLOOKUP(M7V!$AD$40,AA113:AM116,13,0) -> 1.8
B118: H | C118: H1 | D118: Pressure Related Control | H118: Without Pressure Increase | O118: ● | Q118: - | S118: ● | U118: ●
C119: H2 | H119: With Pressure Increase | O119: ● | Q119: - | S119: ● | U119: ●
C120: H3 | H120: With Pressure Increase and Hydraulic Remote Control | O120: ● | Q120: - | S120: ● | U120: ●
B122: ● ＝ Available | G122: ○ ＝ Under Development | L122: ― ＝ Not Available

Sheet M7VC-spec (hidden)
A2: M7V Ordering Code
B5: Please fill in the Inquiry Form on page 39 in order to specify the requirement.
D6: 1 | F6: 2 | G6: 3 | H6: 4 | I6: 5 | J6: 6 | L6: 7 | M6: 8 | N6: 9 | O6: 10 | P6: 11 | Q6: 12 | R6: 13 | S6: 14 | U6: 15
D7: M7V | F7: 112 | G7: A | H7: A | I7: 1 | J7: 1 | K7: - | L7: A | M7: A | N7: 1 | O7: T1 | P7: X | Q7: X | R7: X | S7: N | T7: - | U7: 1
AN8: =IF(M7VC!AG1="Language : English","General(Other)","一般(その他)") -> General(Other)
A9: 1 | B9: M7V Series | AN9: =IF(M7VC!AG1="Language : English","Travel(Closed)","走行(クローズド)") -> Travel(Closed) | AO9: =IF(M7VC!AG1="Language : English","For travel (closed) applications, the motor may require flushing valve to prevent high temperature inside the system.","走行(クローズド)用途では、システム内部の高温を防止するために、モータにフラッシングバルブが必要になる場合があります。") -> For travel (closed) applications, the motor may require flushing valve to prevent high temperature inside the system.
B10: M7V Series, Variable Displacement, Axial Piston Motor, Applicable in Both Open and Closed Loops | AN10: =IF(M7VC!AG1="Language : English","Travel(Open)","走行(オープン)") -> Travel(Open) | AO10: =IF(M7VC!AG1="Language : English","For travel (open) applications, the motor may require counterbalance valves (both directions) to prevent cavitation inside the motor during braking.","走行(クローズド)用途では、ブレーキ時のモータ内部のキャビテーションを防止するために、モータにカウンターバランス弁(両方向)が必要になる場合があります。") -> For travel (open) applications, the motor may require counterbalance valves (both directions) to prevent cavitation inside the motor during braking.
AN11: =IF(M7VC!AG1="Language : English","Hoist","巻上") -> Hoist | AO11: =IF(M7VC!AG1="Language : English","For hoist applications, the motor may require counterbalance valves (one directions) to prevent cavitation inside the motor during braking.","巻上用途では、ブレーキ時に発生するモータ内部のキャビテーションを防止するために、カウンターバランス弁(片方向)が必要になる場合があります。") -> For hoist applications, the motor may require counterbalance valves (one directions) to prevent cavitation inside the motor during braking.
A12: 2 | B12: Size | T12: 85 | U12: 112 | V12: 160 | W12: 212 | AN12: =IF(M7VC!AG1="Language : English","Swing","旋回") -> Swing | AO12: =IF(M7VC!AG1="Language : English","For swing applications, the motor may require counterbalance valves (for swing) to prevent cavitation inside the motor during braking.","旋回用途では、ブレーキ時に発生するモータ内部のキャビテーションを防止するために、カウンターバランス弁(旋回用)が必要になる場合があります。") -> For swing applications, the motor may require counterbalance valves (for swing) to prevent cavitation inside the motor during braking.
B13: Standard Size | T13: - | U13: - | V13: ● | W13: -
A15: 3 | B15: Series Specifications | T15: 85 | U15: 112 | V15: 160 | W15: 212
B16: A | D16: Standard | T16: - | U16: - | V16: ● | W16: -
A18: 4 | B18: Mounting Flange and Port Position
D19: Mounting | M19: Port position | T19: 85 | U19: 112 | V19: 160 | W19: 212
B20: A | T20: - | U20: - | V20: - | W20: - | AA20: A | AB20: =HLOOKUP(M7VC!$AD$53,'M7VC-spec'!$T$19:$W$25,2,0) -> - | AC20: =VLOOKUP(M7VC!AD55,AA20:AB25,2,0) -> ● | AE20: =M7VC!AD55&M7VC!AD59&M7VC!AD62 -> C47 | AF20: =VLOOKUP(AE20,Com!Y1:Z24,2,0) -> ○
B21: B | T21: - | U21: - | V21: - | W21: - | AA21: B | AB21: =HLOOKUP(M7VC!$AD$53,'M7VC-spec'!$T$19:$W$25,3,0) -> -
B22: C | D22: Spigot φ200 (φ250 - 2bolt Mount) | M22: Rear | T22: - | U22: - | V22: ● | W22: - | AA22: C | AB22: =HLOOKUP(M7VC!$AD$53,'M7VC-spec'!$T$19:$W$25,4,0) -> ●
B23: D | D23: Spigot φ200 (φ250 - 2bolt Mount) | M23: Side | T23: - | U23: - | V23: ○ | W23: - | AA23: D | AB23: =HLOOKUP(M7VC!$AD$53,'M7VC-spec'!$T$19:$W$25,5,0) -> ○
B24: E | D24: Spigot φ200 (φ250 - 2bolt Mount) | M24: Bottom | T24: - | U24: - | V24: ○ | W24: - | AA24: E | AB24: =HLOOKUP(M7VC!$AD$53,'M7VC-spec'!$T$19:$W$25,6,0) -> ○
B25: F | T25: - | U25: - | V25: - | W25: - | AA25: F | AB25: =HLOOKUP(M7VC!$AD$53,'M7VC-spec'!$T$19:$W$25,7,0) -> -
A27: 5 | B27: Port and Flange Fixing Thread
D28: Threaded Port Type | M28: Flange Fixing Thread Type | T28: 85 | U28: 112 | V28: 160 | W28: 212
B29: 1 | D29: ANSI ISO11926 | M29: ANSI ASMEB1.1 | T29: - | U29: - | V29: ○ | W29: - | AA29: 1 | AB29: =HLOOKUP(M7VC!$AD$53,'M7VC-spec'!T28:W32,2,0) -> ○ | AC29: =VLOOKUP(M7VC!AD59,AA29:AB30,2,0) -> ●
B30: 2 | D30: ANSI ISO11926 | M30: Metric ISO724 | T30: - | U30: - | V30: - | W30: - | AA30: 4 | AB30: =HLOOKUP(M7VC!$AD$53,'M7VC-spec'!T28:W32,5,0) -> ●
B31: 3 | D31: Metric ISO6149 | M31: Metric ISO724 | T31: - | U31: - | V31: - | W31: -
B32: 4 | D32: Parallel Piping ISO228 | M32: Metric ISO724 | T32: - | U32: - | V32: ● | W32: -
A34: 6 | B34: Shaft End
D35: Standard | M35: Specifications | T35: 85 | U35: 112 | V35: 160 | W35: 212
B36: 1 | D36: ANSI B92.1 | M36: 1 1/2 in 17T 12/24DP | T36: - | U36: - | V36: - | W36: - | AA36: 1 | AB36: =HLOOKUP(M7VC!$AD$53,'M7VC-spec'!$T$35:$W$44,2,0) -> - | AC36: =VLOOKUP(M7VC!AD62,AA36:AB43,2,0) -> ●
B37: 2 | D37: ANSI B92.1 | M37: 1 3/4 in 13T 8/16DP | T37: - | U37: - | V37: ○ | W37: - | AA37: 2 | AB37: =HLOOKUP(M7VC!$AD$53,'M7VC-spec'!$T$35:$W$44,3,0) -> ○
B38: 3 | D38: ANSI B92.1 | M38: 2 in 15T 8/16DP | T38: - | U38: - | V38: ○ | W38: - | AA38: 3 | AB38: =HLOOKUP(M7VC!$AD$53,'M7VC-spec'!$T$35:$W$44,4,0) -> ○
B39: 4 | D39: ANSI B92.1 | M39: 1 3/8 in 21T 16/32DP | T39: - | U39: - | V39: - | W39: - | AA39: 4 | AB39: =HLOOKUP(M7VC!$AD$53,'M7VC-spec'!$T$35:$W$44,5,0) -> -
B40: 5 | D40: DIN5480 | M40: W35×2×16×9 g | T40: - | U40: - | V40: - | W40: - | AA40: 5 | AB40: =HLOOKUP(M7VC!$AD$53,'M7VC-spec'!$T$35:$W$44,6,0) -> -
B41: 6 | D41: DIN5480 | M41: W40×2×18×9 g | T41: - | U41: - | V41: - | W41: - | AA41: 6 | AB41: =HLOOKUP(M7VC!$AD$53,'M7VC-spec'!$T$35:$W$44,7,0) -> -
B42: 7 | D42: DIN5480 | M42: W45×2×21×9 g | T42: - | U42: - | V42: ● | W42: - | AA42: 7 | AB42: =HLOOKUP(M7VC!$AD$53,'M7VC-spec'!$T$35:$W$44,8,0) -> ●
B43: 8 | D43: DIN5480 | M43: W50×2×24×9 g | T43: - | U43: - | V43: ● | W43: - | AA43: 8 | AB43: =HLOOKUP(M7VC!$AD$53,'M7VC-spec'!$T$35:$W$44,9,0) -> ●
B44: 9 | D44: ANSI B92.1 | M44: 1 1/4 in 14T 12/24DP | T44: - | U44: - | V44: - | W44: - | AA44: 9 | AB44: =HLOOKUP(M7VC!$AD$53,'M7VC-spec'!$T$35:$W$44,10,0) -> -
A46: 7 | B46: Maximum Displacement | AA46: QMAX | AH46: QMIN
B47: Size | C47: 85 | D47: A ： 85 | E47: - | F47: B ： 80 | G47: - | H47: C ： 75 | I47: - | J47: D ： 70 | K47: - | AB47: 85 | AC47: 112 | AD47: 160 | AE47: 212 | AI47: 85 | AJ47: 112 | AK47: 160 | AL47: 212
C48: 112 | D48: A ： 112 | E48: - | F48: B ： 107 | G48: - | H48: C： 100 | I48: - | J48: D ： 95 | K48: - | AA48: A | AB48: 85 | AC48: 112 | AD48: 160 | AE48: 215 | AF48: =HLOOKUP(M7VC!$AD$53,$AB$47:$AE$52,2,0) -> 160 | AH48: A | AI48: 51 | AJ48: 68 | AK48: 96 | AL48: 86 | AM48: =HLOOKUP(M7VC!$AD$53,$AI$47:$AL$52,2,0) -> 96
C49: 160 | D49: A ： 160 | E49: ● | F49: B ： 155 | G49: ● | H49: C： 150 | I49: ● | J49: D ： 140 | K49: ● | AA49: B | AB49: 80 | AC49: 107 | AD49: 155 | AE49: 200 | AF49: =HLOOKUP(M7VC!$AD$53,$AB$47:$AE$52,3,0) -> 155 | AH49: B | AI49: 40 | AJ49: 50 | AK49: 80 | AL49: 70 | AM49: =HLOOKUP(M7VC!$AD$53,$AI$47:$AL$52,3,0) -> 80
C50: 212 | D50: A ： 215 | E50: - | F50: B ： 200 | G50: - | H50: C ： 190 | I50: - | J50: D ： 180 | K50: - | AA50: C | AB50: 75 | AC50: 100 | AD50: 150 | AE50: 190 | AF50: =HLOOKUP(M7VC!$AD$53,$AB$47:$AE$52,4,0) -> 150 | AH50: C | AI50: 30 | AJ50: 40 | AK50: 60 | AL50: 60 | AM50: =HLOOKUP(M7VC!$AD$53,$AI$47:$AL$52,4,0) -> 60
AA51: D | AB51: 70 | AC51: 95 | AD51: 140 | AE51: 180 | AF51: =HLOOKUP(M7VC!$AD$53,$AB$47:$AE$52,5,0) -> 140 | AH51: D | AI51: - | AJ51: 30 | AK51: 40 | AL51: - | AM51: =HLOOKUP(M7VC!$AD$53,$AI$47:$AL$52,5,0) -> 40
A52: 8 | B52: Minimum Displacement | AF52: =VLOOKUP(M7VC!AD66,AA48:AF51,6,0) -> 160 | AH52: E | AI52: - | AJ52: 22 | AK52: 32 | AL52: - | AM52: =HLOOKUP(M7VC!$AD$53,$AI$47:$AL$52,6,0) -> 32
B53: Size | C53: 85 | D53: A ： 51 | E53: - | F53: B ： 40 | G53: - | H53: C ： 30 | I53: - | J53: D ： - | K53: - | L53: E ： - | M53: - | AM53: =VLOOKUP(M7VC!AD67,AH48:AM52,6,0) -> 96
C54: 112 | D54: A ： 68 | E54: - | F54: B ： 50 | G54: - | H54: C ： 40 | I54: - | J54: D ： 30 | K54: - | L54: E ： 22 | M54: -
C55: 160 | D55: A ： 96 | E55: ● | F55: B ： 80 | G55: ● | H55: C ： 60 | I55: ● | J55: D ： 40 | K55: ● | L55: E ： 32 | M55: ●
C56: 212 | D56: A ： 86 | E56: - | F56: B ： 70 | G56: - | H56: C ： 60 | I56: - | J56: D ： - | K56: - | L56: E ： - | M56: -
A58: 9 | B58: Speed Sensor | T58: 85 | U58: 112 | V58: 160 | W58: 212
B59: 1 | D59: Without Speed Sensor | T59: - | U59: - | V59: ● | W59: -
B60: 2 | D60: With Speed Sensor (A port side) | T60: - | U60: - | V60: ● | W60: -
B61: B | D61: With Speed Sensor (B port side) | T61: - | U61: - | V61: ● | W61: -
A63: 10 | B63: Regulator (See the table on page 11 for the possible combinations of regulator and optional valve options.) | T63: 85 | U63: 112 | V63: 160 | W63: 212
B64: T | C64: T1 | D64: Electric Two Position Displacement control | I64: Electric Control, 24 V | T64: - | U64: - | V64: ● | W64: - | AA64: =M7VC!AD71&M7VC!AD85 -> T1X | AB64: =VLOOKUP(AA64,Com!P1:Q56,2,0) -> ○ | AC64: =VLOOKUP('M7VC-spec'!AA64,Com!S1:T28,2,0) -> 1
C65: T2 | I65: Electric Control, 12 V | T65: - | U65: - | V65: ● | W65: -
B66: y | C66: Y1 | D66: Hydraulic Two Position Displacement Control | I66: Negative Control | T66: - | U66: - | V66: ● | W66: -
B67: E | C67: E1 | D67: Electric Proportional Control | I67: Negative Control, 24V | T67: - | U67: - | V67: ● | W67: -
C68: E2 | I68: Positive Control, 24V | T68: - | U68: - | V68: ● | W68: -
C69: E3 | I69: Negative Control, 12V | T69: - | U69: - | V69: ● | W69: -
C70: E4 | I70: Positive Control, 12V | T70: - | U70: - | V70: ● | W70: -
B71: P | C71: P1 | D71: Hydraulic Proportional control | I71: Negative Control, Pi = 2.5MPa | T71: - | U71: - | V71: ● | W71: -
C72: P2 | I72: Positive Control, Pi = 2.5MPa | T72: - | U72: - | V72: ● | W72: -
C73: P3 | I73: Negative Control, Pi = 1.0MPa | T73: - | U73: - | V73: ● | W73: -
C74: P4 | I74: Positive Control, Pi = 1.0MPa | T74: - | U74: - | V74: ● | W74: -
B75: H | C75: H1 | D75: Pressure Related Control | I75: Without Pressure Increase | T75: - | U75: - | V75: ● | W75: -
C76: H2 | I76: With Pressure Increase | T76: - | U76: - | V76: ● | W76: -
C77: H3 | I77: With Pressure Increase and Hydraulic Remote Control | T77: - | U77: - | V77: ● | W77: -
A79: 11 | B79: Optional Valves | E79: (See the table on page 11 for the possible combinations of optional valve and regulator options.) | T79: 85 | U79: 112 | V79: 160 | W79: 212
B80: X | C80: X | D80: Without Any Optional Valve | T80: - | U80: - | V80: ● | W80: -
B81: A | C81: A1 | D81: Pressure Control Valve | I81: With Pressure Control Valve | T81: - | U81: - | V81: ● | W81: -
B82: B | C82: B1 | D82: Two Position Displacement Control | I82: With Electric Two-Position Control Valve, 24 V | T82: - | U82: - | V82: ● | W82: -
C83: B2 | I83: With Electric Two-Position Control Valve, 12 V | T83: - | U83: - | V83: ● | W83: -
A85: 12 | B85: Accessories | T85: 85 | U85: 112 | V85: 160 | W85: 212
B86: X | D86: Without Any Accessory | T86: - | U86: - | V86: ● | W86: - | AA86: X | AB86: =HLOOKUP(M7VC!$AD$53,'M7VC-spec'!$T$85:$W$88,2,0) -> ● | AC86: =VLOOKUP(M7VC!AD89,AA86:AB88,2,0) -> ● | AE86: X | AF86: a | AG86: =VLOOKUP(M7VC!AD89,AE86:AF88,2,0) -> a
B87: 1 | D87: Without Flushing Spool | T87: - | U87: - | V87: ● | W87: - | AA87: 1 | AB87: =HLOOKUP(M7VC!$AD$53,'M7VC-spec'!$T$85:$W$88,3,0) -> ● | AE87: 1 | AF87: b
B88: 2 | D88: With Low Pressure Relief Valve | T88: - | U88: - | V88: ○ | W88: - | AA88: 2 | AB88: =HLOOKUP(M7VC!$AD$53,'M7VC-spec'!$T$85:$W$88,4,0) -> ○ | AE88: 2 | AF88: c
A90: 13 | B90: Counter Balance Valve | T90: 85 | U90: 112 | V90: 160 | W90: 212
B91: X | D91: Without Counter Balance Valve | T91: - | U91: - | V91: ● | W91: - | AA91: X | AB91: =HLOOKUP(M7VC!$AD$53,'M7VC-spec'!$T$90:$W$93,2,0) -> ● | AC91: =VLOOKUP(M7VC!AD93,AA91:AB93,2,0) -> ● | AE91: X | AF91: a | AG91: =VLOOKUP(M7VC!AD93,AE91:AF93,2,0) -> a
B92: 1 | D92: With Counter Balance Valve | I92: Hoist : CW rotation (port A inlet) | O92: viewed from the shaft end | T92: - | U92: - | V92: ○ | W92: - | AA92: 1 | AB92: =HLOOKUP(M7VC!$AD$53,'M7VC-spec'!$T$90:$W$93,3,0) -> ○ | AE92: 1 | AF92: b
B93: 2 | D93: With Counter Balance Valve | I93: Hoist : CCW rotation (port B inlet) | O93: viewed from the shaft end | T93: - | U93: - | V93: ○ | W93: - | AA93: 2 | AB93: =HLOOKUP(M7VC!$AD$53,'M7VC-spec'!$T$90:$W$93,4,0) -> ○ | AE93: 2 | AF93: b
A95: 14 | B95: Response Speed of Control | T95: 85 | U95: 112 | V95: 160 | W95: 212
B96: N | D96: Standard | T96: - | U96: - | V96: ● | W96: -
A98: 15 | B98: Design Code | T98: 85 | U98: 112 | V98: 160 | W98: 212
B99: ** | D99: 01~ | T99: - | U99: - | V99: ● | W99: -
B102: ● ＝ Available | G102: ○ ＝ Under Development | L102: ― ＝ Not Available
B104: ★ M7V Control Options | O104: Options for Optional Valves (Code [11]) | AB104: qmax | AC104: qmax | AD104: qmin | AE104: q100 | AF104: q60
B105: Note: Control options are common to all M7V motors | O105: Without Any Optional Valve | Q105: With Cut-Off Valve | S105: With Electric Two-Position Control Valve (24V) | U105: With Electric Two-Position Control Valve (12V) | AA105: 85 | AB105: =IF(AC105<AE105,AE105,AC105) -> 6150 | AC105: =IF(M7VC!AF16=AC117,AE105,IF(M7VC!AF16<0.6*AC117,AF105,IF(M7VC!AF16>0.94*AC117,AE105,326000/M7VC!AF16))) -> 6150 | AD105: =IF(M7VC!AI16=AC117,AE105,IF(M7VC!AI16<0.6*AC117,AF105,IF(M7VC!AI16>0.94*AC117,AE105,326000/M7VC!AI16))) -> 6150 | AE105: 3900 | AF105: 6150
B106: Options for Regulator (Code[10]) | O106: X | Q106: A1 | S106: B1 | U106: B2 | AA106: 112 | AB106: =IF(AC106<AE106,AE106,AC106) -> 5600 | AC106: =IF(M7VC!AF16=AC117,AE106,IF(M7VC!AF16<0.6*AC117,AF106,IF(M7VC!AF16>0.96*AC117,AE106,380800/M7VC!AF16))) -> 5600 | AD106: =IF(M7VC!AI16=AC117,AE106,IF(M7VC!AI16<0.6*AC117,AF106,IF(M7VC!AI16>0.96*AC117,AE106,380800/M7VC!AI16))) -> 5600 | AE106: 3550 | AF106: 5600
B107: T | C107: T1 | D107: Two Position Displacement Control | H107: Electric Control, 24 V | O107: ● | Q107: - | S107: - | U107: - | AA107: 160 | AB107: =IF(AC107<AE107,AE107,AC107) -> 4900 | AC107: =IF(M7VC!AF16=AC117,AE107,IF(M7VC!AF16<0.6*AC117,AF107,IF(M7VC!AF16>0.95*AC117,AE107,470400/M7VC!AF16))) -> 4900 | AD107: =IF(M7VC!AI16=AC117,AE107,IF(M7VC!AI16<0.6*AC117,AF107,IF(M7VC!AI16>0.95*AC117,AE107,470400/M7VC!AI16))) -> 4900 | AE107: 3100 | AF107: 4900
C108: T2 | H108: Electric Control, 12 V | O108: ● | Q108: - | S108: - | U108: - | AA108: 212 | AB108: =IF(AC108<AE108,AE108,AC108) -> 4600 | AC108: =IF(M7VC!AF16=AC117,AE108,IF(M7VC!AF16<0.4*AC117,AF108,IF(M7VC!AF16>0.63*AC117,AE108,395600/M7VC!AF16))) -> 4600 | AD108: =IF(M7VC!AI16=AC117,AE108,IF(M7VC!AI16<0.4*AC117,AF108,IF(M7VC!AI16>0.63*AC117,AE108,395600/M7VC!AI16))) -> 4600 | AE108: 2900 | AF108: 4600
B109: y | C109: Y1 | D109: Hydraulic Two Position Displacement Control | H109: Negative Control | O109: ● | Q109: ● | S109: - | U109: - | AB109: =VLOOKUP(M7VC!AD53,AA105:AD108,2,0) -> 4900 | AD109: =VLOOKUP(M7VC!AD53,AA105:AD108,4,0) -> 4900
B110: E | C110: E1 | D110: Electric Proportional Control | H110: Negative Control, 24V | O110: ● | Q110: ● | S110: - | U110: -
C111: E2 | H111: Positive Control, 24V | O111: ● | Q111: ○ | S111: - | U111: -
C112: E3 | H112: Negative Control, 12V | O112: ● | Q112: ● | S112: - | U112: - | AB112: max. dis | AD112: min.dis | AF112: Nmax. | AG112: Nnom | AH112: Pmax | AI112: Pnom | AJ112: Qmax | AK112: Tmax | AL112: Cracking press
C113: E4 | H113: Positive Control, 12V | O113: ● | Q113: ○ | S113: - | U113: - | AA113: 85 | AB113: 68 | AC113: 88.5 | AD113: 0 | AE113: 68 | AF113: 6150 | AG113: 3900 | AH113: 45 | AI113: 40 | AJ113: 332 | AK113: 541 | AL113: 0.7 | AM113: 1.8
B114: P | C114: P1 | D114: Hydraulic Proportional Control | H114: Negative Control, Pi = 2.5MPa | O114: ● | Q114: ● | S114: - | U114: - | AA114: 112 | AB114: 90 | AC114: 112 | AD114: 0 | AE114: 90 | AF114: 5600 | AG114: 3550 | AH114: 45 | AI114: 40 | AJ114: 398 | AK114: 713 | AL114: 0.7 | AM114: 1.8
C115: P2 | H115: Positive Control, Pi = 2.5MPa | O115: ● | Q115: ○ | S115: - | U115: - | AA115: 160 | AB115: 128 | AC115: 160 | AD115: 0 | AE115: 128 | AF115: 4900 | AG115: 3100 | AH115: 45 | AI115: 40 | AJ115: 496 | AK115: 1019 | AL115: 0.65 | AM115: 0.9
C116: P3 | H116: Negative Control, Pi = 1.0MPa | O116: ● | Q116: ● | S116: - | U116: - | AA116: 212 | AB116: 170 | AC116: 215 | AD116: 0 | AE116: 170 | AF116: 4600 | AG116: 2900 | AH116: 50 | AI116: 42 | AJ116: 623 | AK116: 1437 | AL116: 0.65 | AM116: 0.9
C117: P4 | H117: Positive Control, Pi = 1.0MPa | O117: ● | Q117: ○ | S117: - | U117: - | AB117: =VLOOKUP(M7VC!$AD$53,AA113:AB116,2,0) -> 128 | AC117: =VLOOKUP(M7VC!$AD$53,AA113:AC116,3,0) -> 160 | AD117: =VLOOKUP(M7VC!$AD$53,AA113:AD116,4,0) -> 0 | AE117: =VLOOKUP(M7VC!$AD$53,AA113:AE116,5,0) -> 128 | AF117: =VLOOKUP(M7VC!$AD$53,AA113:AF116,6,0) -> 4900 | AG117: =VLOOKUP(M7VC!$AD$53,AA113:AG116,7,0) -> 3100 | AH117: =IF(AG91="a",(VLOOKUP(M7VC!$AD$53,AA113:AH116,8,0)),34.3) -> 45 | AI117: =IF(AG91="a",(VLOOKUP(M7VC!$AD$53,AA113:AI116,9,0)),34.3) -> 40 | AJ117: =VLOOKUP(M7VC!$AD$53,AA113:AK116,10,0) -> 496 | AK117: =VLOOKUP(M7VC!$AD$53,AA113:AK116,11,0) -> 1019 | AL117: =VLOOKUP(M7VC!$AD$53,AA113:AL116,12,0) -> 0.65 | AM117: =VLOOKUP(M7VC!$AD$53,AA113:AM116,13,0) -> 0.9
B118: H | C118: H1 | D118: Pressure Related Control | H118: Without Pressure Increase | O118: ● | Q118: - | S118: ● | U118: ●
C119: H2 | H119: With Pressure Increase | O119: ● | Q119: - | S119: ● | U119: ●
C120: H3 | H120: With Pressure Increase and Hydraulic Remote Control | O120: ● | Q120: - | S120: ● | U120: ●
B122: ● ＝ Available | G122: ○ ＝ Under Development | L122: ― ＝ Not Available

Sheet M7X-spec (hidden)
B2: M7X Ordering Code
C5: Please fill in the Inquiry Form on page ** in order to specify the requirement.
C7: M7X | E7: 112 | F7: A | G7: A | H7: 2 | I7: 2 | J7: - | K7: A | L7: X | M7: X | N7: X | O7: X | P7: - | Q7: *
C8: 1 | E8: 2 | F8: 3 | G8: 4 | H8: 5 | I8: 6 | K8: 7 | L8: 8 | M8: 9 | N8: 10 | O8: 11 | Q8: 12 | AN8: =IF(M7V!AG1="Language : English","General(Other)","一般(その他)") -> General(Other)
AN9: =IF(M7X!AG1="Language : English","Travel(Closed)","走行(クローズド)") -> Travel(Closed) | AO9: =IF(M7X!AG1="Language : English","For travel (closed) applications, the motor may require flushing valve to prevent high temperature inside the system.","走行(クローズド)用途では、システム内部の高温を防止するために、モータにフラッシングバルブが必要になる場合があります。") -> For travel (closed) applications, the motor may require flushing valve to prevent high temperature inside the system.
B10: 1 | C10: M7X Series | AN10: =IF(M7X!AG1="Language : English","Travel(Open)","走行(オープン)") -> Travel(Open) | AO10: =IF(M7X!AG1="Language : English","For travel (open) applications, the motor may require counterbalance valves (both directions) to prevent cavitation inside the motor during braking.","走行(クローズド)用途では、ブレーキ時のモータ内部のキャビテーションを防止するために、モータにカウンターバランス弁(両方向)が必要になる場合があります。") -> For travel (open) applications, the motor may require counterbalance valves (both directions) to prevent cavitation inside the motor during braking.
C11: M7X Series, Fixed Displacement, Axial Piston Motor, Applicable in Both Open and Closed Loops | AN11: =IF(M7X!AG1="Language : English","Hoist","巻上") -> Hoist | AO11: =IF(M7X!AG1="Language : English","For hoist applications, the motor may require counterbalance valves (one directions) to prevent cavitation inside the motor during braking.","巻上用途では、ブレーキ時に発生するモータ内部のキャビテーションを防止するために、カウンターバランス弁(片方向)が必要になる場合があります。") -> For hoist applications, the motor may require counterbalance valves (one directions) to prevent cavitation inside the motor during braking.
U12: 85 | V12: ● | W12: =VLOOKUP(M7X!AD65,U12:V14,2,0) -> ● | AN12: =IF(M7X!AG1="Language : English","Swing","旋回") -> Swing | AO12: =IF(M7X!AG1="Language : English","For swing applications, the motor may require counterbalance valves (for swing) to prevent cavitation inside the motor during braking.","旋回用途では、ブレーキ時に発生するモータ内部のキャビテーションを防止するために、カウンターバランス弁(旋回用)が必要になる場合があります。") -> For swing applications, the motor may require counterbalance valves (for swing) to prevent cavitation inside the motor during braking.
B13: 2 | C13: Size | O13: 85 | P13: 112 | Q13: 160 | U13: 112 | V13: ●
C14: Standard Size | O14: ● | P14: ● | Q14: ● | U14: 160 | V14: ●
B16: 3 | C16: Series Specifications
C17: A | E17: Standard
B19: 4 | C19: Mounting Flange and Port Position
E20: Mounting | J20: Port position | O20: 85 | P20: 112 | Q20: 160
C21: A | E21: SAE J744, 4-bolt Mount | J21: Rear | O21: ● | P21: ● | Q21: ● | U21: A | V21: =HLOOKUP(M7X!$AD$65,'M7X-spec'!$O$20:$Q$26,2,0) -> ● | W21: =VLOOKUP(M7X!AD69,U21:V24,2,0) -> ● | Y21: =M7X!AD69&M7X!AD74&M7X!AD77 -> A12 | Z21: =VLOOKUP(Y21,Com!K1:L216,2,0) -> ○
C22: B | E22: SAE J744, 4-bolt Mount | J22: Side | O22: ● | P22: ● | Q22: ● | U22: B | V22: =HLOOKUP(M7X!$AD$65,'M7X-spec'!$O$20:$Q$26,3,0) -> ●
C23: C | E23: ISO 3019-2, 4-bolt Mount | J23: Rear | O23: ● | P23: ● | Q23: ● | U23: C | V23: =HLOOKUP(M7X!$AD$65,'M7X-spec'!$O$20:$Q$26,4,0) -> ●
C24: D | E24: ISO 3019-2, 4-bolt Mount | J24: Side | O24: ● | P24: ● | Q24: ● | U24: D | V24: =HLOOKUP(M7X!$AD$65,'M7X-spec'!$O$20:$Q$26,5,0) -> ●
C25: G | E25: SAE J744, 4-bolt Mount | J25: Upper Side | O25: ○ | P25: ○ | Q25: ○
C26: H | E26: ISO 3019-2, 4-bolt Mount | J26: Upper Side | O26: ○ | P26: ○ | Q26: ○
B28: 5 | C28: Port and Flange Fixing Thread
E29: Threaded Port Type | J29: Flange Fixing Thread Type | O29: 85 | P29: 112 | Q29: 160
C30: 1 | E30: ANSI ISO 11926 | J30: ANSI ASMEB1.1 | O30: ● | P30: ● | Q30: ● | U30: 1 | V30: =HLOOKUP(M7X!$AD$65,'M7X-spec'!$O$29:$Q$33,2,0) -> ● | W30: =VLOOKUP(M7X!AD74,U30:V31,2,0) -> ●
C31: 2 | E31: ANSI ISO 11926 | J31: Metric ISO724 | O31: ○ | P31: ○ | Q31: ○ | U31: 4 | V31: =HLOOKUP(M7X!$AD$65,'M7X-spec'!$O$29:$Q$33,5,0) -> ●
C32: 3 | E32: Metric ISO6149 | J32: Metric ISO724 | O32: ○ | P32: ○ | Q32: ○
C33: 4 | E33: Parallel Piping ISO228 | J33: Metric ISO724 | O33: ● | P33: ● | Q33: ●
B35: 6 | C35: Shaft End
E36: Standard | J36: Specification | O36: 85 | P36: 112 | Q36: 160
C37: 1 | E37: ANSI B92.1 | J37: 1 1/2 in 17T 12/24DP | O37: - | P37: - | Q37: - | U37: 2 | V37: =HLOOKUP(M7X!$AD$65,'M7X-spec'!$O$36:$Q$45,3,0) -> ● | W37: =VLOOKUP(M7X!AD77,U37:V43,2,0) -> ●
C38: 2 | E38: ANSI B92.1 | J38: 1 3/4 in 13T 8/16DP | O38: - | P38: ● | Q38: ● | U38: 4 | V38: =HLOOKUP(M7X!$AD$65,'M7X-spec'!$O$36:$Q$45,5,0) -> -
C39: 3 | E39: ANSI B92.1 | J39: 2 in 15T 8/16DP | O39: - | P39: - | Q39: - | U39: 5 | V39: =HLOOKUP(M7X!$AD$65,'M7X-spec'!$O$36:$Q$45,6,0) -> -
C40: 4 | E40: ANSI B92.1 | J40: 1 3/8 in 21T 16/32DP | O40: ● | P40: - | Q40: - | U40: 6 | V40: =HLOOKUP(M7X!$AD$65,'M7X-spec'!$O$36:$Q$45,7,0) -> -
C41: 5 | E41: DIN5480 | J41: W35×2×16×9 g | O41: ○ | P41: - | Q41: - | U41: 7 | V41: =HLOOKUP(M7X!$AD$65,'M7X-spec'!$O$36:$Q$45,8,0) -> ●
C42: 6 | E42: DIN5480 | J42: W40×2×18×9 g | O42: ● | P42: ● | Q42: - | U42: 8 | V42: =HLOOKUP(M7X!$AD$65,'M7X-spec'!$O$36:$Q$45,9,0) -> ●
C43: 7 | E43: DIN5480 | J43: W45×2×21×9 g | O43: - | P43: ● | Q43: ● | U43: 9 | V43: =HLOOKUP(M7X!$AD$65,'M7X-spec'!$O$36:$Q$45,10,0) -> -
C44: 8 | E44: DIN5480 | J44: W50×2×24×9 g | O44: - | P44: ○ | Q44: ●
C45: 9 | E45: ANSI B92.1 | J45: 1 1/4 in 14T 12/24DP | O45: ● | P45: - | Q45: -
U46: QMAX
B47: 7 | C47: Displacement Setting (cm3) | O47: 85 | P47: 112 | Q47: 160 | V47: 85 | W47: 112 | X47: 160
C48: A | E48: 90 | F48: 112 | O48: ● | P48: ● | Q48: ● | U48: A | V48: 90 | W48: 112 | X48: 160 | Z48: =HLOOKUP(M7X!$AD$65,$V$47:$Y$52,2,0) -> 160
C49: B | E49: 80 | O49: ● | P49: - | Q49: - | U49: B | V49: 80 | W49: - | X49: - | Z49: =HLOOKUP(M7X!$AD$65,$V$47:$Y$52,3,0) -> -
C50: C | E50: 75 | O50: ○ | P50: - | Q50: - | U50: C | V50: 75 | W50: - | X50: - | Z50: =HLOOKUP(M7X!$AD$65,$V$47:$Y$52,4,0) -> -
C51: D | E51: 85 | O51: ● | P51: - | Q51: - | U51: D | V51: 85 | W51: - | X51: - | Z51: =HLOOKUP(M7X!$AD$65,$V$47:$Y$52,5,0) -> -
Z52: =VLOOKUP(M7X!AD84,U48:Z51,6,0) -> 160
B53: 8 | C53: Optional Valve | O53: 85 | P53: 112 | Q53: 160
C54: Blank | E54: Without Any Optional Valve | O54: ● | P54: ● | Q54: ● | U54: Blank | V54: =HLOOKUP(M7X!$AD$65,'M7X-spec'!$O$53:$Q$61,2,0) -> ● | W54: =VLOOKUP(M7X!AD85,U54:V61,2,0) -> ● | X54: Blank | Y54: a | Z54: =VLOOKUP(M7X!AD85,X54:Y61,2,0) -> a | AA54: aa | AB54: 〇 | AC54: =VLOOKUP(AD54,AA54:AB59,2,0) -> 〇 | AD54: =Z54&Z64 -> aa
C55: X | E55: With Counterbalance Valve | H55: Hoist : CW rotation (port A inlet) | L55: viewed from the shaft end | O55: ○ | P55: ○ | Q55: ○ | U55: X | V55: =HLOOKUP(M7X!$AD$65,'M7X-spec'!$O$53:$Q$61,3,0) -> ○ | X55: X | Y55: b | AA55: ac | AB55: ×
C56: Y | E56: With Counterbalance Valve | H56: Hoist : CCW rotation (port B inlet) | L56: viewed from the shaft end | O56: ○ | P56: ○ | Q56: ○ | U56: Y | V56: =HLOOKUP(M7X!$AD$65,'M7X-spec'!$O$53:$Q$61,4,0) -> ○ | X56: Y | Y56: b | AA56: ba | AB56: 〇
C57: Z | E57: Without Counterbalance Valve, With Flushing Valve | O57: ○ | P57: ○ | Q57: ○ | U57: Z | V57: =HLOOKUP(M7X!$AD$65,'M7X-spec'!$O$53:$Q$61,5,0) -> ○ | X57: Z | Y57: c | AA57: bc | AB57: ×
C58: A | E58: With Flushing Valve | H58: - φ1.5_3.5L/min | U58: A | V58: =HLOOKUP(M7X!$AD$65,'M7X-spec'!$O$53:$Q$61,6,0) -> 0 | X58: A | Y58: c | AA58: ca | AB58: ×
C59: B | E59: With Flushing Valve | H59: - φ1.8_5L/min | U59: B | V59: =HLOOKUP(M7X!$AD$65,'M7X-spec'!$O$53:$Q$61,7,0) -> 0 | X59: B | Y59: c | AA59: cc | AB59: 〇
C60: C | E60: With Flushing Valve | H60: - φ2.3_8L/min | U60: C | V60: =HLOOKUP(M7X!$AD$65,'M7X-spec'!$O$53:$Q$61,8,0) -> 0 | X60: C | Y60: c
C61: D | E61: With Flushing Valve | H61: - φ2.8_13L/min | U61: D | V61: =HLOOKUP(M7X!$AD$65,'M7X-spec'!$O$53:$Q$61,9,0) -> 0 | X61: D | Y61: c
B63: 9 | C63: Port Option for Flushing Valve Assembly | O63: 85 | P63: 112 | Q63: 160
C64: Blank | E64: Without Flushing Valve | O64: ● | P64: ● | Q64: ● | U64: Blank | V64: =HLOOKUP(M7X!$AD$65,'M7X-spec'!$O$63:$Q$66,2,0) -> ● | W64: =VLOOKUP(M7X!AD90,U64:V66,2,0) -> ● | X64: Blank | Y64: a | Z64: =VLOOKUP(M7X!AD90,X64:Y66,2,0) -> a
C65: A | E65: Parallel Piping ISO228 | O65: ○ | P65: ○ | Q65: ○ | U65: A | V65: =HLOOKUP(M7X!$AD$65,'M7X-spec'!$O$63:$Q$66,3,0) -> ○ | X65: A | Y65: c
C66: B | E66: ANSI ISO 11926 | O66: ○ | P66: ○ | Q66: ○ | U66: B | V66: =HLOOKUP(M7X!$AD$65,'M7X-spec'!$O$63:$Q$66,4,0) -> ○ | X66: B | Y66: c
B68: 10 | C68: Speed Sensor | O68: 85 | P68: 112 | Q68: 160
C69: Blank | E69: Without Speed Sensor | O69: ● | P69: ● | Q69: ● | U69: Blank | V69: =HLOOKUP(M7X!$AD$65,'M7X-spec'!$O$68:$Q$71,2,0) -> ● | W69: =VLOOKUP(M7X!AD93,U69:V71,2,0) -> ●
C70: 1 | E70: With Speed Sensor (A port side) | O70: ● | P70: ● | Q70: ● | U70: 1 | V70: =HLOOKUP(M7X!$AD$65,'M7X-spec'!$O$68:$Q$71,3,0) -> ●
C71: B | E71: With Speed Sensor (B port side) | O71: ● | P71: ● | Q71: ● | U71: B | V71: =HLOOKUP(M7X!$AD$65,'M7X-spec'!$O$68:$Q$71,4,0) -> ●
B73: 11 | C73: Design Code | O73: 85 | P73: 112 | Q73: 160
C74: ** | E74: 01~ | O74: ● | P74: ● | Q74: ●
C76: ● ＝ Available | H76: ○ ＝ Under Development
V77: Nmax. | W77: Pmax | X77: Pnom | Y77: Qmax | Z77: Tmax | AA77: Cracking press
U78: 85 | V78: 4500 | W78: 45 | X78: 40 | Y78: 405 | Z78: 573 | AA78: 0.7 | AB78: 1.8
U79: 112 | V79: 4000 | W79: 45 | X79: 40 | Y79: 398 | Z79: 713 | AA79: 0.7 | AB79: 1.8
U80: 160 | V80: 3600 | W80: 45 | X80: 40 | Y80: 496 | Z80: 1019 | AA80: 0.65 | AB80: 0.9
V81: =VLOOKUP(M7X!$AD$65,U78:V80,2,0) -> 3600 | W81: =IF(Z54="b",34.3,(VLOOKUP(M7X!$AD$65,U78:W80,3,0))) -> 45 | X81: =IF(Z54="b",34.3,(VLOOKUP(M7X!$AD$65,U78:X80,4,0))) -> 40 | Y81: =VLOOKUP(M7X!$AD$65,U78:Y80,5,0) -> 496 | Z81: =VLOOKUP(M7X!$AD$65,U78:Z80,6,0) -> 1019 | AA81: =VLOOKUP(M7X!$AD$65,U78:AA80,7,0) -> 0.65 | AB81: =VLOOKUP(M7X!$AD$65,U78:AB80,8,0) -> 0.9

Sheet M7V
R1: =VLOOKUP(M7V!V6,'M7V-spec'!AN8:AO12,2,0) ->  | AG1: Language : English | AJ1: Rev: 4
B3: M7V series Inquiry Form | R3: Fill-in Date ： | AD3: Author ：
B6: Please select an item from a drop down list in a cell with thick red borders. Options with ★ are under development. If it is chosen, the cell's color changes to yellow. | R6: Application ： | V6: General(Other) | AD6: Machine Model ：
B8: If the cell's color is red, the request is out of Kawasaki standard specification range. Even if the request is out of Kawasaki specification range, please describe the detail on the note and consult with Kawasaki.
R9: Customer ： | AD9: Motor Model ： | AG9: =C13&D13&F13&H13&J13&L13&N13&P13&R13&T13&V13&X13&Z13&AB13&AD13&AF13&AG13 -> M7V85AA11-AA1T1XXXN-**
B11: Variable Displacement Motor
B12: Model Code | C12: 1 | D12: 2 | F12: 3 | H12: 4 | J12: 5 | L12: 6 | P12: 7 | R12: 8 | T12: 9 | V12: 10 | X12: 11 | Z12: 12 | AB12: 13 | AD12: 14 | AG12: 15
C13: M7V | D13: =IF(AD40<>"",AD40,"") -> 85 | F13: A | H13: =IF(AD45<>"",AD45,"") -> A | J13: =IF(AD54<>"",AD54,"") -> 1 | L13: =IF(AD57<>"",AD57,"") -> 1 | N13: - | P13: =IF(AD66<>"",AD66,"") -> A | R13: =IF(AD67<>"",AD67,"") -> A | T13: =IF(AD68<>"",AD68,"") -> 1 | V13: =IF(AD71<>"",AD71,"") -> T1 | X13: =IF(AD85<>"",AD85,"") -> X | Z13: =IF(AD89<>"",AD89,"") -> X | AB13: =IF(AD93<>"",AD93,"") -> X | AD13: N | AF13: - | AG13: =IF(AD97<>"",AD97,"") -> **
B15: Items | F15: Symbol | H15: Kawasaki Standard Specification | AD15: Customer Specification
B16: Max. / Min. Displacement | F16: qmax/qmin | H16: =IF(AG1="Language : English",IF(AD66="V","Max. Displacement: "&'M7V-spec'!AC117&" "&"-"&" "&TEXT('M7V-spec'!AB117,"0")&" "&"cm3" & CHAR(10) &"(In case Code V is selected in the section 7)","Max. Displacement: "&TEXT('M7V-spec'!AF52,"0")&" "&"cm3"),IF(AD66="V","最大押しのけ容量: "&'M7V-spec'!AC117&" "&"-"&" "&TEXT('M7V-spec'!AB117,"0")&" "&"cm3" & CHAR(10) &"(セクション7でコードVが選ばれた場合)","最大押しのけ容量: "&TEXT('M7V-spec'!AF52,"0")&" "&"cm3")) -> Max. Displacement: 85 cm3 | S16: =IF(AG1="Language : English",IF(AD67="V","Min. Displacement: "&TEXT('M7V-spec'!AE117,"0")&" "&"-"&" "&TEXT('M7V-spec'!AD117,"0")&" "&"cm3" & CHAR(10) &"(In case Code V is selected in the section 8)","Min. Displacement: "&TEXT('M7V-spec'!AM53,"0")&" "&"cm3"),IF(AD67="V","最小押しのけ容量: "&TEXT('M7V-spec'!AE117,"0")&" "&"-"&" "&TEXT('M7V-spec'!AD117,"0")&" "&"cm3" & CHAR(10) &"(セクション8でコードVが選ばれた場合)","最小押しのけ容量: "&TEXT('M7V-spec'!AM53,"0")&" "&"cm3")) -> Min. Displacement: 51 cm3 | AD16: qmax: | AG16: cm3 | AH16: qmin: | AJ16: cm3
B17: Max. Speed @ qmax / qmin | F17: Nnom/Nmax | H17: Max. Speed@qmax: | L17: =IF(AG1="Language : English","Up to "&TEXT('M7V-spec'!AB109,"0")&" "&"min-1",""&TEXT('M7V-spec'!AB109,"0")&" "&"min-1まで") -> Up to 6150 min-1 | S17: Max. Speed@qmin: | W17: =IF(AG1="Language : English","Up to "&TEXT('M7V-spec'!AD109,"0")&" "&"min-1",""&TEXT('M7V-spec'!AD109,"0")&" "&"min-1まで") -> Up to 6150 min-1 | AD17: Nnom@qmax: | AG17: min-1 | AH17: Nmax@qmin: | AJ17: min-1
B18: Max. / Nominal Pressure | F18: Pmax/Pnom | H18: =IF(AG1="Language : English","Max. Pressure: Up to "&'M7V-spec'!AH117&"MPa","最高圧力: "&'M7V-spec'!AH117&"MPaまで") -> Max. Pressure: Up to 45MPa | S18: =IF(AG1="Language : English","Nominal Pressure: Up to "&'M7V-spec'!AI117&" "&"MPa","定格圧力: "&'M7V-spec'!AI117&" "&"Mpaまで") -> Nominal Pressure: Up to 40 MPa | AD18: Pmax: | AG18: MPa | AH18: Pnom: | AJ18: MPa
B19: Case Drain Pressure | F19: --- | H19: Continuous: Up to 0.2 MPa | S19: Peak: Up to 0.6 MPa | AD19: Continuous: | AG19: MPa | AH19: Peak: | AJ19: MPa
B20: CBV - Set Pressure of Relief Valve / Break Release Port | F20: --- | H20: Set Pressure of Relief Valve (STD): 34.3MPa | S20: Break Release Port: w/o Shuttle Valve or w/ Shuttle Valve or w/ Hydraulic Reducing Relief Valve | AD20: Relief: | AF20: 34.3 | AG20: MPa
B21: CBV - Cracking Pressure of Spool / Check Valve | F21: --- | H21: =IF(AG1="Language : English","Cracking Pressure of Spool (STD): "&TEXT('M7V-spec'!AL117,"0.00")&"MPa"&" "&"or"&" "&TEXT('M7V-spec'!AM117,"0.00")&"MPa","スプールのクラッキング圧力 (標準): "&TEXT('M7V-spec'!AL117,"0.00")&"MPa"&" "&"または"&" "&TEXT('M7V-spec'!AM117,"0.00")&"MPa") -> Cracking Pressure of Spool (STD): 0.70MPa or 1.80MPa | S21: Cracking Pressure of Check Valve (STD): 0.03MPa | AD21: Spool: | AG21: MPa | AH21: Check Valve: | AI21: 0.03 | AJ21: MPa
B22: Oil Temperature Range (Inlet) | F22: --- | H22: -20 to 95 ℃ (Drain temperature: up to Max. 115℃ momentarily) | AD22: Operating: | AG22: ℃ | AH22: Intermittent: | AJ22: ℃
B23: Mounting Direction | F23: --- | H23: Vertical or Horizontal
B24: Oil Type / Oil Viscosity Range | F24: --- | H24: Equivalent to ISO VG46 | S24: 10 to 1,000 mm2/s(cSt) | AJ24: mm2/s(cSt)
B25: Name Plate | F25: --- | H25: KHI Standard (Supplier Name, Model Code and S/N)
B26: Paint | F26: --- | H26: KHI Standard (Act Primer Red Brown)
B27: Customer Part Number | F27: ---
B28: Proto Type Requirement | F28: --- | AD28: Qty's: | AG28: pcs | AH28: Due date:
B29: Production Schedule | F29: --- | AD29: Qty's: | AG29: pcs/years | AH29: Start date:
B30: Original Motor Model (Competitor) | F30: --- | H30: If the model of original motor can be found, please write down for a reference
B32: Comments (Other requirements) | U32: Operating condition, Duty cycle etc. (Describe your detail)
B39: Items | F39: No. | H39: Kawasaki Standard Specification | AD39: Code | AF39: Note
B40: Motor Size | F40: 2 | H40: 85 | AD40: 85
H41: 112
H42: 160
H43: 212
B44: Series Specifications | F44: 3 | H44: A : Standard | AD44: A
B45: Mounting Flange and Port Position | F45: 4 | H45: Mounting | S45: Port Position | AD45: A
H46: A : | I46: SAE J744, 2-bolt Mount (for M7V85) | S46: Rear | AB46: =IF('M7V-spec'!AB20="○","★","") -> 
I47: SAE J744, 4-bolt Mount (for M7V112/160/212)
H48: B : | I48: SAE J744, 2-bolt Mount (for M7V85) | S48: Side | AB48: =IF('M7V-spec'!AB21="○","★","") -> 
I49: SAE J744, 4-bolt Mount (for M7V112/160/212)
H50: C : | I50: ISO 3019-2, 4-bolt Mount | S50: Rear | AB50: =IF('M7V-spec'!AB22="○","★","") -> 
H51: D : | I51: ISO 3019-2, 4-bolt Mount | S51: Side | AB51: =IF('M7V-spec'!AB23="○","★","") -> 
H52: E : | I52: SAE J744, 4-bolt Mount (for M7V85) | S52: Rear | AB52: =IF('M7V-spec'!AB24="○","★","") -> 
H53: F : | I53: SAE J744, 4-bolt Mount (for M7V85) | S53: Side | AB53: =IF('M7V-spec'!AB25="○","★","") -> 
B54: Port and Flange Fixing Thread | F54: 5 | H54: Type of Threaded Port | S54: Thread Type for Flange Port | AD54: 1
H55: 1 : ANSI ISO11926 | S55: ANSI ASMEB1.1 | AB55: =IF('M7V-spec'!AB29="○","★","") -> 
H56: 4 : Parallel Piping ISO228 | S56: Metric ISO724 | AB56: =IF('M7V-spec'!AB30="○","★","") -> 
B57: Shaft End | F57: 6 | H57: 1 : ANSI B92.1, 1 1/2 in 17T 12/24DP (for M7V85) | AB57: =IF('M7V-spec'!AB36="○","★","") ->  | AD57: 1
H58: 2 : ANSI B92.1, 1 3/4 in 13T 8/16DP (for M7V112/160) | AB58: =IF('M7V-spec'!AB37="○","★","") -> 
H59: 3 : ANSI B92.1, 2 in 15T 8/16DP (for M7V160/212) | AB59: =IF('M7V-spec'!AB38="○","★","") -> 
H60: 4 : ANSI B92.1, 1 3/8 in 21T 16/32DP (for M7V85) | AB60: =IF('M7V-spec'!AB39="○","★","") -> 
H61: 5 : DIN 5480, W35×2×16×9 g (for M7V85) | AB61: =IF('M7V-spec'!AB40="○","★","") -> 
H62: 6 : DIN 5480, W40×2×18×9 g (for M7V85/112) | AB62: =IF('M7V-spec'!AB41="○","★","") -> 
H63: 7 : DIN 5480, W45×2×21×9 g (for M7V112/160) | AB63: =IF('M7V-spec'!AB42="○","★","") -> 
H64: 8 : DIN 5480, W50×2×24×9 g (for M7V160/212) | AB64: =IF('M7V-spec'!AB43="○","★","") ->  | AF64: =IF('M7V-spec'!AF20="×","Please check the combination availability of the code at [4] [5] [6].","") -> 
H65: 9 : ANSI B92.1, 1 1/4 in 14T 12/24DP (for M7V85) | AB65: =IF('M7V-spec'!AB44="○","★","") -> 
B66: Max. Displacement (cm3) | F66: 7 | H66: A : | I66: ='M7V-spec'!AF48 -> 85 | K66: B : | L66: ='M7V-spec'!AF49 -> 80 | N66: C : | O66: ='M7V-spec'!AF50 -> 75 | Q66: D : | R66: ='M7V-spec'!AF51 -> 70 | W66: V : | X66: ='M7V-spec'!AC117&" "&"-"&" "&TEXT('M7V-spec'!AB117,"0") -> 88.5 - 68 | AD66: A
B67: Min. Displacement (cm3) | F67: 8 | H67: A : | I67: ='M7V-spec'!AM48 -> 51 | K67: B : | L67: ='M7V-spec'!AM49 -> 40 | N67: C : | O67: ='M7V-spec'!AM50 -> 30 | Q67: D : | R67: ='M7V-spec'!AM51 -> - | T67: E : | U67: ='M7V-spec'!AM52 -> - | W67: V : | X67: =TEXT('M7V-spec'!AE117,"0")&" "&"-"&" "&TEXT('M7V-spec'!AD117,"0") -> 68 - 0 | AD67: A
B68: Speed Sensor | F68: 9 | H68: 1 : w/o Speed Sensor | AD68: 1
H69: 2 : w/ Speed Sensor (A Port Side)
H70: B : w/ Speed Sensor (B Port Side)
B71: Regulator (For all possible combinations of regulators and optional valves see the table for M7V Control Options shown in the catalog.) | F71: 10 | H71: T | I71: Two Position Displacement Control | N71: T1 : Negative Control, 24V | AD71: T1
N72: T2 : Negative Control, 12V
H73: Y | I73: Hydraulic Two Position Displacement Control | N73: Y1 : Negative Control
H74: E | I74: Electric Proportional Control | N74: E1 : Negative Control, 24V
N75: E2 : Positive Control, 24V
N76: E3 : Negative Control, 12V
N77: E4 : Positive Control, 12V
H78: P | I78: Hydraulic Proportional Control | N78: P1 : Negative Control Type, Adjustable Range: Pi = 2.5 MPa
N79: P2 : Positive Control Type, Adjustable Range: Pi = 2.5 MPa
N80: P3 : Negative Control Type, Adjustable Range: Pi = 1.0 MPa
N81: P4 : Positive Control Type, Adjustable Range: Pi = 1.0 MPa
H82: H | I82: Pressure Related Control | N82: H1 : w/o Pressure Increase
N83: H2 : w/ Pressure Increase
N84: H3 : w/ Pressure Increase and Hydraulic Remote Control
B85: Optional Valve (For all possible combinations of optional valves and regulators see the table for M7V Control Options shown in the catalog.) | F85: 11 | H85: X : w/o Any Optional Valve | AD85: X
H86: A1 : w/ Pressure Control Valve (for Regulator Code E,P)
H87: B1 : w/ Electric Two-position Control Valve, 24V (for Regulator Code H) | AF87: =IF('M7V-spec'!AB64="×","Please check the combination availability of code at [10] [11].","") -> 
H88: B2 : w/ Electric Two-position Control Valve, 12V (for Regulator Code H)
B89: Accessories | F89: 12 | H89: Flushing Valve | M89: Internal Cooling | R89: Flushing Flow | AD89: X
H90: X : w/o Flushing Valve | M90: w/ Internal Cooling | R90: 1.8 L/min (M7V85/112), 5.0 L/min (M7V160/212) at ΔP=2.5MPa | AB90: =IF('M7V-spec'!AB86="○","★","") -> 
H91: 1 : w/o Flushing Valve | M91: w/o Internal Cooling | R91: - | AB91: =IF('M7V-spec'!AB87="○","★","") ->  | AF91: =IF('M7V-spec'!AG86="b","Please note the coolability inside of the motor is reduced Without Flushing Spool. The allowable max. operating speed is reduced.","") -> 
H92: 2 : w/ Flushing Valve | M92: w/ Internal Cooling | R92: 1.8 L/min (M7V85/112), 5.0 L/min (M7V160/212) at ΔP=2.5MPa | AB92: =IF('M7V-spec'!AB88="○","★","") -> ★
B93: Counter Balance Valve | F93: 13 | H93: X : w/o Counter Balance Valve | AB93: =IF('M7V-spec'!AB91="○","★","") ->  | AD93: X
H94: 1 : w/ Counter Balance Valve Hoist at CW rotation (A port inlet) viewed from the shaft end | AB94: =IF('M7V-spec'!AB92="○","★","") -> ★ | AF94: =IF('M7V-spec'!AG91="b","Please note the Max. pressure range is reduced due to CBV's Relief Valve (Up to 34.3MPa).","") -> 
H95: 2 : w/ Counter Balance Valve Hoist at CCW rotation (B port inlet) viewed from the shaft end | AB95: =IF('M7V-spec'!AB93="○","★","") -> ★
B96: Response Speed of Control | F96: 14 | H96: N : Standard | AD96: N
B97: Design Code | F97: 15 | H97: ** : 01 ～ | AD97: **

Sheet M7VC
R1: =VLOOKUP(M7VC!V6,'M7VC-spec'!AN8:AO12,2,0) ->  | AG1: Language : English | AJ1: Rev: 4
B3: M7VC series Inquiry Form | R3: Fill-in Date ： | AD3: Author ：
B6: Please select an item from a drop down list in a cell with thick red borders. Options with ★ are under development. If it is chosen, the cell's color changes to yellow. | R6: Application ： | V6: General(Other) | AD6: Machine Model ：
B8: If the cell's color is red, the request is out of Kawasaki standard specification range. Even if the request is out of Kawasaki specification range, please describe the detail on the note and consult with Kawasaki.
R9: Customer ： | AD9: Motor Model ： | AG9: =C13&D13&F13&H13&J13&L13&N13&P13&R13&T13&V13&X13&Z13&AB13&AD13&AF13&AG13 -> M7VC160AC47-AA1T1XXXN-**
B11: Variable Displacement Motor
B12: Model Code | C12: 1 | D12: 2 | F12: 3 | H12: 4 | J12: 5 | L12: 6 | P12: 7 | R12: 8 | T12: 9 | V12: 10 | X12: 11 | Z12: 12 | AB12: 13 | AD12: 14 | AG12: 15
C13: M7VC | D13: =IF(AD53<>"",AD53,"") -> 160 | F13: A | H13: =IF(AD55<>"",AD55,"") -> C | J13: =IF(AD59<>"",AD59,"") -> 4 | L13: =IF(AD62<>"",AD62,"") -> 7 | N13: - | P13: =IF(AD66<>"",AD66,"") -> A | R13: =IF(AD67<>"",AD67,"") -> A | T13: =IF(AD68<>"",AD68,"") -> 1 | V13: =IF(AD71<>"",AD71,"") -> T1 | X13: =IF(AD85<>"",AD85,"") -> X | Z13: =IF(AD89<>"",AD89,"") -> X | AB13: =IF(AD93<>"",AD93,"") -> X | AD13: N | AF13: - | AG13: =IF(AD97<>"",AD97,"") -> **
B15: Items | F15: Symbol | H15: Kawasaki Standard Specification | AD15: Customer Specification
B16: Max. / Min. Displacement | F16: qmax/qmin | H16: =IF(AG1="Language : English",IF(AD66="V","Max. Displacement: "&'M7VC-spec'!AC117&" "&"-"&" "&TEXT('M7VC-spec'!AB117,"0")&" "&"cm3" & CHAR(10) &"(In case Code V is selected in the section 7)","Max. Displacement: "&TEXT('M7VC-spec'!AF52,"0")&" "&"cm3"),IF(AD66="V","最大押しのけ容量: "&'M7VC-spec'!AC117&" "&"-"&" "&TEXT('M7VC-spec'!AB117,"0")&" "&"cm3" & CHAR(10) &"(セクション7でコードVが選ばれた場合)","最大押しのけ容量: "&TEXT('M7VC-spec'!AF52,"0")&" "&"cm3")) -> Max. Displacement: 160 cm3 | S16: =IF(AG1="Language : English",IF(AD67="V","Min. Displacement: "&TEXT('M7VC-spec'!AE117,"0")&" "&"-"&" "&TEXT('M7VC-spec'!AD117,"0")&" "&"cm3" & CHAR(10) &"(In case Code V is selected in the section 8)","Min. Displacement: "&TEXT('M7VC-spec'!AM53,"0")&" "&"cm3"),IF(AD67="V","最小押しのけ容量: "&TEXT('M7VC-spec'!AE117,"0")&" "&"-"&" "&TEXT('M7VC-spec'!AD117,"0")&" "&"cm3" & CHAR(10) &"(セクション8でコードVが選ばれた場合)","最小押しのけ容量: "&TEXT('M7VC-spec'!AM53,"0")&" "&"cm3")) -> Min. Displacement: 96 cm3 | AD16: qmax: | AG16: cm3 | AH16: qmin: | AJ16: cm3
B17: Max. Speed @ qmax / qmin | F17: Nnom/Nmax | H17: Max. Speed@qmax: | L17: =IF(AG1="Language : English","Up to "&TEXT('M7VC-spec'!AB109,"0")&" "&"min-1",""&TEXT('M7VC-spec'!AB109,"0")&" "&"min-1まで") -> Up to 4900 min-1 | S17: Max. Speed@qmin: | W17: =IF(AG1="Language : English","Up to "&TEXT('M7VC-spec'!AD109,"0")&" "&"min-1",""&TEXT('M7VC-spec'!AD109,"0")&" "&"min-1まで") -> Up to 4900 min-1 | AD17: Nnom@qmax: | AG17: min-1 | AH17: Nmax@qmin: | AJ17: min-1
B18: Max. / Nominal Pressure | F18: Pmax/Pnom | H18: =IF(AG1="Language : English","Max. Pressure: Up to "&'M7VC-spec'!AH117&"MPa","最高圧力: "&'M7VC-spec'!AH117&"MPaまで") -> Max. Pressure: Up to 45MPa | S18: =IF(AG1="Language : English","Nominal Pressure: Up to "&'M7V-spec'!AI117&" "&"MPa","定格圧力: "&'M7V-spec'!AI117&" "&"Mpaまで") -> Nominal Pressure: Up to 40 MPa | AD18: Pmax: | AG18: MPa | AH18: Pnom: | AJ18: MPa
B19: Case Drain Pressure | F19: --- | H19: Continuous: Up to 0.2 MPa | S19: Peak: Up to 0.6 MPa | AD19: Continuous: | AG19: MPa | AH19: Peak: | AJ19: MPa
B20: CBV - Set Pressure of Relief Valve / Break Release Port | F20: --- | H20: Set Pressure of Relief Valve (STD): 34.3MPa | S20: Break Release Port: w/o Shuttle Valve or w/ Shuttle Valve or w/ Hydraulic Reducing Relief Valve | AD20: Relief: | AG20: MPa
B21: CBV - Cracking Pressure of Spool / Check Valve | F21: --- | H21: =IF(AG1="Language : English","Cracking Pressure of Spool (STD): "&TEXT('M7VC-spec'!AL117,"0.00")&"MPa"&" "&"or"&" "&TEXT('M7VC-spec'!AM117,"0.00")&"MPa","スプールのクラッキング圧力 (標準): "&TEXT('M7VC-spec'!AL117,"0.00")&"MPa"&" "&"または"&" "&TEXT('M7VC-spec'!AM117,"0.00")&"MPa") -> Cracking Pressure of Spool (STD): 0.65MPa or 0.90MPa | S21: Cracking Pressure of Check Valve (STD): 0.03MPa | AD21: Spool: | AG21: MPa | AH21: Check Valve: | AI21: 0.03 | AJ21: MPa
B22: Oil Temperature Range (Inlet) | F22: --- | H22: -20 to 95 ℃ (Drain temperature: up to Max. 115℃ momentarily) | AD22: Operating: | AG22: ℃ | AH22: Intermittent: | AJ22: ℃
B23: Mounting Direction | F23: --- | H23: Vertical or Horizontal
B24: Oil Type / Oil Viscosity Range | F24: --- | H24: Equivalent to ISO VG46 | S24: 10 to 1,000 mm2/s(cSt) | AJ24: mm2/s(cSt)
B25: Name Plate | F25: --- | H25: KHI Standard (Supplier Name, Model Code and S/N)
B26: Paint | F26: --- | H26: KHI Standard (Act Primer Red Brown)
B27: Customer Part Number | F27: ---
B28: Proto Type Requirement | F28: --- | AD28: Qty's: | AG28: pcs | AH28: Due date:
B29: Production Schedule | F29: --- | AD29: Qty's: | AG29: pcs/years | AH29: Start date:
B30: Original Motor Model (Competitor) | F30: --- | H30: If the model of original motor can be found, please write down for a reference
B32: Comments (Other requirements) | U32: Operating condition, Duty cycle etc. (Describe your detail)
B52: Items | F52: No. | H52: Kawasaki Standard Specification | AD52: Code | AF52: Note
B53: Motor Size | F53: 2 | H53: 160 | AD53: 160
B54: Series Specifications | F54: 3 | H54: A : Standard | AD54: A
B55: Mounting Flange and Port Position | F55: 4 | H55: Mounting | S55: Port Position | AD55: C
H56: C : | I56: Spigot φ200 (φ250 - 2bolt Mount) | S56: Rear | AB56: =IF('M7VC-spec'!AB22="○","★","") -> 
H57: D : | I57: Spigot φ200 (φ250 - 2bolt Mount) | S57: Side | AB57: =IF('M7VC-spec'!AB23="○","★","") -> ★
H58: E : | I58: Spigot φ200 (φ250 - 2bolt Mount) | S58: Bottom | AB58: =IF('M7VC-spec'!AB24="○","★","") -> ★
B59: Port and Flange Fixing Thread | F59: 5 | H59: Type of Threaded Port | S59: Thread Type for Flange Port | AD59: 4
H60: 1 : ANSI ISO11926 | S60: ANSI ASMEB1.1 | AB60: =IF('M7VC-spec'!AB29="○","★","") -> ★
H61: 4 : Parallel Piping ISO228 | S61: Metric ISO724 | AB61: =IF('M7VC-spec'!AB30="○","★","") -> 
B62: Shaft End | F62: 6 | H62: 2 : ANSI B92.1, 1 3/4 in 13T 8/16DP | AB62: =IF('M7VC-spec'!AB37="○","★","") -> ★ | AD62: 7
H63: 3 : ANSI B92.1, 2 in 15T 8/16DP | AB63: =IF('M7VC-spec'!AB38="○","★","") -> ★
H64: 7 : DIN 5480, W45×2×21×9 g | AB64: =IF('M7VC-spec'!AB42="○","★","") ->  | AF64: =IF('M7VC-spec'!AF20="×","Please check the combination availability of the code at [5] [6].","") -> 
H65: 8 : DIN 5480, W50×2×24×9 g | AB65: =IF('M7VC-spec'!AB43="○","★","") -> 
B66: Max. Displacement (cm3) | F66: 7 | H66: A : | I66: ='M7VC-spec'!AF48 -> 160 | K66: B : | L66: ='M7VC-spec'!AF49 -> 155 | N66: C : | O66: ='M7VC-spec'!AF50 -> 150 | Q66: D : | R66: ='M7VC-spec'!AF51 -> 140 | W66: V : | X66: ='M7VC-spec'!AC117&" "&"-"&" "&TEXT('M7VC-spec'!AB117,"0") -> 160 - 128 | AD66: A
B67: Min. Displacement (cm3) | F67: 8 | H67: A : | I67: ='M7VC-spec'!AM48 -> 96 | K67: B : | L67: ='M7VC-spec'!AM49 -> 80 | N67: C : | O67: ='M7VC-spec'!AM50 -> 60 | Q67: D : | R67: ='M7VC-spec'!AM51 -> 40 | T67: E : | U67: ='M7VC-spec'!AM52 -> 32 | W67: V : | X67: =TEXT('M7VC-spec'!AE117,"0")&" "&"-"&" "&TEXT('M7VC-spec'!AD117,"0") -> 128 - 0 | AD67: A
B68: Speed Sensor | F68: 9 | H68: 1 : w/o Speed Sensor | AD68: 1
H69: 2 : w/ Speed Sensor (A Port Side)
H70: B : w/ Speed Sensor (B Port Side)
B71: Regulator (For all possible combinations of regulators and optional valves see the table for M7V Control Options shown in the catalog.) | F71: 10 | H71: T | I71: Two Position Displacement Control | N71: T1 : Negative Control, 24V | AD71: T1
N72: T2 : Negative Control, 12V
H73: Y | I73: Hydraulic Two Position Displacement Control | N73: Y1 : Negative Control
H74: E | I74: Electric Proportional Control | N74: E1 : Negative Control, 24V
N75: E2 : Positive Control, 24V
N76: E3 : Negative Control, 12V
N77: E4 : Positive Control, 12V
H78: P | I78: Hydraulic Proportional Control | N78: P1 : Negative Control Type, Adjustable Range: Pi = 2.5 MPa
N79: P2 : Positive Control Type, Adjustable Range: Pi = 2.5 MPa
N80: P3 : Negative Control Type, Adjustable Range: Pi = 1.0 MPa
N81: P4 : Positive Control Type, Adjustable Range: Pi = 1.0 MPa
H82: H | I82: Pressure Related Control | N82: H1 : w/o Pressure Increase
N83: H2 : w/ Pressure Increase
N84: H3 : w/ Pressure Increase and Hydraulic Remote Control
B85: Optional Valve (For all possible combinations of optional valves and regulators see the table for M7V Control Options shown in the catalog.) | F85: 11 | H85: X : w/o Any Optional Valve | AD85: X
H86: A1 : w/ Pressure Control Valve (for Regulator Code E,P)
H87: B1 : w/ Electric Two-position Control Valve, 24V (for Regulator Code H) | AF87: =IF('M7V-spec'!AB64="×","Please check the combination availability of code at [10] [11].","") -> 
H88: B2 : w/ Electric Two-position Control Valve, 12V (for Regulator Code H)
B89: Accessories | F89: 12 | H89: Flushing Valve | M89: Internal Cooling | R89: Flushing Flow | AD89: X
H90: X : w/o Flushing Valve | M90: w/ Internal Cooling | R90: 1.8 L/min (M7V85/112), 5.0 L/min (M7V160/212) at ΔP=2.5MPa | AB90: =IF('M7VC-spec'!AB86="○","★","") -> 
H91: 1 : w/o Flushing Valve | M91: w/o Internal Cooling | R91: - | AB91: =IF('M7VC-spec'!AB87="○","★","") ->  | AF91: =IF('M7V-spec'!AG86="b","Please note the coolability inside of the motor is reduced Without Flushing Spool. The allowable max. operating speed is reduced.","") -> 
H92: 2 : w/ Flushing Valve | M92: w/ Internal Cooling | R92: 1.8 L/min (M7V85/112), 5.0 L/min (M7V160/212) at ΔP=2.5MPa | AB92: =IF('M7VC-spec'!AB88="○","★","") -> ★
B93: Counter Balance Valve | F93: 13 | H93: X : w/o Counter Balance Valve | AB93: =IF('M7VC-spec'!AB91="○","★","") ->  | AD93: X
H94: 1 : w/ Counter Balance Valve Hoist at CW rotation (A port inlet) viewed from the shaft end | AB94: =IF('M7VC-spec'!AB92="○","★","") -> ★ | AF94: =IF('M7V-spec'!AG91="b","Please note the Max. pressure range is reduced due to CBV's Relief Valve (Up to 34.3MPa).","") -> 
H95: 2 : w/ Counter Balance Valve Hoist at CCW rotation (B port inlet) viewed from the shaft end | AB95: =IF('M7VC-spec'!AB93="○","★","") -> ★
B96: Response Speed of Control | F96: 14 | H96: N : Standard | AD96: N
B97: Design Code | F97: 15 | H97: ** : 01 ～ | AD97: **

Sheet M7X
R1: =VLOOKUP(M7X!V6,'M7X-spec'!AN8:AO12,2,0) ->  | AG1: Language : English | AJ1: Rev: 4
B3: M7X series Inquiry Form | R3: Fill-in Date ： | AD3: Author ：
B6: Please select an item from a drop down list in a cell with thick red borders. Options with ★ are under development. If it is chosen, the cell's color changes to yellow. | R6: Application ： | V6: General(Other) | AD6: Machine Model ：
B8: If the cell's color is red, the request is out of Kawasaki standard specification range. Even if the request is out of Kawasaki specification range, please describe the detail on the note and consult with Kawasaki.
R9: Customer ： | AD9: Motor Model ： | AG9: =C13&D13&F13&H13&J13&L13&N13&P13&R13&T13&V13&X13&Z13 -> M7X160AA12-A-**
B11: Fixed Displacement Motor
B12: Model Code | C12: 1 | D12: 2 | F12: 3 | H12: 4 | J12: 5 | L12: 6 | P12: 7 | R12: 8 | T12: 9 | V12: 10 | Z12: 11
C13: M7X | D13: =IF(AD65<>"",AD65,"") -> 160 | F13: A | H13: =IF(AD69<>"",AD69,"") -> A | J13: =IF(AD74<>"",AD74,"") -> 1 | L13: =IF(AD77<>"",AD77,"") -> 2 | N13: - | P13: =IF(AD84<>"",AD84,"") -> A | R13: =IF(AD85="Blank","",AD85) ->  | T13: =IF(AD90="Blank","",AD90) ->  | V13: =IF(AD93="Blank","",AD93) ->  | X13: - | Z13: =IF(AD96<>"",AD96,"") -> **
B15: Items | F15: Symbol | H15: Kawasaki Standard Specification | AD15: Customer Specification
B16: Max. Displacement | F16: qmax | H16: =IF(AG1="Language : English","Max. Displacement: "&TEXT('M7X-spec'!Z52,"0")&" "&"cc/rev","最大押しのけ容積: "&TEXT('M7X-spec'!Z52,"0")&" "&"cc/rev") -> Max. Displacement: 160 cc/rev | AD16: qmax: | AJ16: cm3
B17: Max. Speed @ qmax | F17: Nnom | H17: Max. Speed@qmax: | L17: =IF(AG1="Language : English","Up to "&TEXT('M7X-spec'!V81,"0")&" "&"min-1",""&TEXT('M7X-spec'!V81,"0")&" "&"min-1まで") -> Up to 3600 min-1 | AD17: Nnom: | AJ17: min-1
B18: Max. / Nominal Pressure | F18: Pmax/Pnom | H18: =IF(AG1="Language : English","Max. Pressure: Up to "&TEXT('M7X-spec'!W81,"0")&" "&"MPa"&"","最高圧力: "&TEXT('M7X-spec'!W81,"0")&" "&"MPa"&"まで") -> Max. Pressure: Up to 45 MPa | S18: =IF(AG1="Language : English","Nominal Pressure: Up to "&TEXT('M7X-spec'!X81,"0")&" "&"MPa","定格圧力: "&TEXT('M7X-spec'!X81,"0")&" "&"MPaまで") -> Nominal Pressure: Up to 40 MPa | AD18: Pmax: | AG18: MPa | AH18: Pnom: | AJ18: MPa
B19: Case Drain Pressure | F19: --- | H19: Continuous: Up to 0.2 MPa | S19: Peak: Up to 0.6 MPa | AD19: Continuous: | AG19: MPa | AH19: Peak: | AJ19: MPa
B20: CBV - Set Pressure of Relief Valve / Break Release Port | F20: --- | H20: Set Pressure of Relief Valve (STD): 34.3MPa | S20: Break Release Port: w/o Shuttle Valve or w/ Shuttle Valve or w/ Hydraulic Reducing Relief Valve | AD20: Relief: | AF20: 34.3 | AG20: MPa
B21: CBV - Cracking Pressure of Spool / Check Valve | F21: --- | H21: =IF(AG1="Language : English","Cracking Pressure of Spool (STD): "&TEXT('M7X-spec'!AA81,"0.00")&"MPa"&" "&"or"&" "&TEXT('M7X-spec'!AB81,"0.00")&"MPa","スプールのクラッキング圧力 (標準): "&TEXT('M7X-spec'!AA81,"0.00")&"MPa"&" "&"または"&" "&TEXT('M7X-spec'!AB81,"0.00")&"MPa") -> Cracking Pressure of Spool (STD): 0.65MPa or 0.90MPa | S21: =IF(AG1="Language : English","Cracking Pressure of Check Valve (STD): 0.03MPa","チェック弁のクラッキング圧力 (標準): 0.03MPa") -> Cracking Pressure of Check Valve (STD): 0.03MPa | AD21: Spool: | AG21: MPa | AH21: Check Valve: | AI21: 0.03 | AJ21: MPa
B22: Oil Temperature Range (Inlet) | F22: --- | H22: -20 to 95 ℃ (Drain temperature: up to Max. 115℃ momentarily) | AD22: Operating: | AG22: ℃ | AH22: Intermittent: | AJ22: ℃
B23: Mounting Direction | F23: --- | H23: Vertical or Horizontal
B24: Oil Type / Oil Viscosity Range | F24: --- | H24: Equivalent to ISO VG46 | S24: 10 to 1,000 mm2/s(cSt) | AJ24: mm2/s(cSt)
B25: Name Plate | F25: --- | H25: KHI Standard (Supplier Name, Model Code and S/N)
B26: Paint | F26: --- | H26: KHI Standard (Act Primer Red Brown)
B27: Customer Part Number | F27: ---
B28: Proto Type Requirement | F28: --- | AD28: Qty's: | AG28: pcs | AH28: Due date:
B29: Production Schedule | F29: --- | AD29: Qty's: | AG29: pcs/years | AH29: Start date:
B30: Original Pump Model (Competitor) | F30: --- | H30: If the model of original motor can be found, please write down for a reference
B32: Comments (Other requirements) | U32: Operating condition, Duty cycle etc. (Describe your detail)
B64: Items | F64: No. | H64: Kawasaki Standard Specification | AD64: Code | AF64: Note
B65: Motor Size | F65: 2 | H65: 85 | AB65: =IF('M7X-spec'!V12="○","★","") ->  | AD65: 160
H66: 112 | AB66: =IF('M7X-spec'!V13="○","★","") -> 
H67: 160 | AB67: =IF('M7X-spec'!V14="○","★","") -> 
B68: Series Specifications | F68: 3 | H68: A : Standard | AD68: A
B69: Mounting Flange and Port Position | F69: 4 | H69: Mounting | S69: Port Position | AD69: A
H70: A : | I70: SAE J744, 4-bolt Mount | S70: Rear | AB70: =IF('M7X-spec'!V21="○","★","") -> 
H71: B : | I71: SAE J744, 4-bolt Mount | S71: Side | AB71: =IF('M7X-spec'!V22="○","★","") -> 
H72: C : | I72: ISO 3019-2, 4-bolt Mount | S72: Rear | AB72: =IF('M7X-spec'!V23="○","★","") -> 
H73: D : | I73: ISO 3019-2, 4-bolt Mount | S73: Side | AB73: =IF('M7X-spec'!V24="○","★","") -> 
B74: Port and Flange Fixing Thread | F74: 5 | H74: Type of Threaded Port | S74: Thread Type for Flange Port | AD74: 1
H75: 1 : ANSI ISO11926 | S75: ANSI ASMEB1.1 | AB75: =IF('M7X-spec'!V30="○","★","") -> 
H76: 4 : Parallel Piping ISO228 | S76: Metric ISO724 | AB76: =IF('M7X-spec'!V31="○","★","") -> 
B77: Shaft End | F77: 6 | H77: 2 : ANSI B92.1, 1 3/4 in 13T 8/16DP (for M7X112/160) | AB77: =IF('M7X-spec'!V37="○","★","") ->  | AD77: 2
H78: 4 : ANSI B92.1, 1 3/8 in 21T 16/32DP (for M7X85) | AB78: =IF('M7X-spec'!V38="○","★","") -> 
H79: 5 : DIN 5480, W35×2×16×9 g (for M7X85) | AB79: =IF('M7X-spec'!V39="○","★","") -> 
H80: 6 : DIN 5480, W40×2×18×9 g (for M7X85/112) | AB80: =IF('M7X-spec'!V40="○","★","") -> 
H81: 7 : DIN 5480, W45×2×21×9 g (for M7X112/160) | AB81: =IF('M7X-spec'!V41="○","★","") -> 
H82: 8 : DIN 5480, W50×2×24×9 g (for M7X112/160) | AB82: =IF('M7X-spec'!V42="○","★","") ->  | AF82: =IF('M7X-spec'!Z21="×","Please check the combination availability of the code [4] [5] [6].","") -> 
H83: 9 : ANSI B92.1, 1 1/4 in 14T 12/24DP (for M7X85) | AB83: =IF('M7X-spec'!V43="○","★","") -> 
B84: Max. Displacement (cm3) | F84: 7 | H84: A : | I84: ='M7X-spec'!Z48 -> 160 | K84: B : | L84: ='M7X-spec'!Z49 -> - | N84: C : | O84: ='M7X-spec'!Z50 -> - | Q84: D : | R84: ='M7X-spec'!Z51 -> - | AD84: A
B85: Optional Valve | F85: 8 | H85: Counter Balance Valve | S85: Flushing Valve | AD85: Blank
H86: Blank : w/o Counter Balance Valve | S86: w/o Flushing Valve | AB86: =IF('M7X-spec'!V54="○","★","") -> 
H87: X : | I87: w/ Counter Balance Valve Hoist at CW rotation (A port inlet) viewed from the shaft end | S87: w/o Flushing Valve | AB87: =IF('M7X-spec'!V55="○","★","") -> ★
H88: Y : | I88: w/ Counter Balance Valve Hoist at CCW rotation (B port inlet) viewed from the shaft end | S88: w/o Flushing Valve | AB88: =IF('M7X-spec'!V56="○","★","") -> ★
H89: Z : | I89: w/o Counter Balance Valve | S89: w/ Flushing Valve | AB89: =IF('M7X-spec'!V57="○","★","") -> ★
B90: Port Option for Flushing Valve Assembly | F90: 9 | H90: Blank : w/o Flushing Valve | AB90: =IF('M7X-spec'!V64="○","★","") ->  | AD90: Blank
H91: A : Parallel Piping ISO228 | AB91: =IF('M7X-spec'!V65="○","★","") -> ★ | AF91: =IF('M7X-spec'!AC54="×","Please check the combination availability of the code at [8] [9].","") -> 
H92: B : ANSI ISO 11926 | AB92: =IF('M7X-spec'!V66="○","★","") -> ★
B93: Speed Sensor | F93: 10 | H93: Blank : w/o Speed Sensor | AB93: =IF('M7X-spec'!V69="○","★","") ->  | AD93: Blank
H94: 1 : w/ Speed Sensor (A Port Side) | AB94: =IF('M7X-spec'!V70="○","★","") -> 
H95: B : w/ Speed Sensor (B Port Side) | AB95: =IF('M7X-spec'!V71="○","★","") -> 
B96: Design Code | F96: 11 | H96: ** : 01 ～ | AD96: **

Sheet Com (hidden)
B1: A | C1: 1 | D1: 1 | E1: A11 | F1: ○ | H1: A | I1: 1 | J1: 1 | K1: A11 | L1: ○ | N1: T1 | O1: X | P1: T1X | Q1: ○ | S1: T1X | T1: 1 | V1: C | W1: 1 | X1: 2 | Y1: C12 | Z1: ○
B2: A | C2: 1 | D2: 2 | E2: A12 | F2: ○ | H2: A | I2: 1 | J2: 2 | K2: A12 | L2: ○ | N2: T2 | O2: X | P2: T2X | Q2: ○ | S2: T2X | T2: 1 | V2: C | W2: 1 | X2: 3 | Y2: C13 | Z2: ○
A3: SAE | B3: A | C3: 1 | D3: 3 | E3: A13 | F3: ○ | H3: A | I3: 1 | J3: 3 | K3: A13 | L3: ○ | N3: Y1 | O3: X | P3: Y1X | Q3: ○ | S3: Y1X | T3: 2 | V3: C | W3: 1 | X3: 7 | Y3: C17 | Z3: ×
A4: ISO | B4: A | C4: 1 | D4: 4 | E4: A14 | F4: × | H4: A | I4: 1 | J4: 4 | K4: A14 | L4: × | N4: E1 | O4: X | P4: E1X | Q4: ○ | S4: E1X | T4: 3 | V4: C | W4: 1 | X4: 8 | Y4: C18 | Z4: ×
B5: A | C5: 1 | D5: 5 | E5: A15 | F5: × | H5: A | I5: 1 | J5: 5 | K5: A15 | L5: × | N5: E2 | O5: X | P5: E2X | Q5: ○ | S5: E3X | T5: 3 | V5: C | W5: 4 | X5: 2 | Y5: C42 | Z5: ×
B6: A | C6: 1 | D6: 6 | E6: A16 | F6: × | H6: A | I6: 1 | J6: 6 | K6: A16 | L6: × | N6: E3 | O6: X | P6: E3X | Q6: ○ | S6: E2X | T6: 4 | V6: C | W6: 4 | X6: 3 | Y6: C43 | Z6: ×
B7: A | C7: 1 | D7: 7 | E7: A17 | F7: × | H7: A | I7: 1 | J7: 7 | K7: A17 | L7: × | N7: E4 | O7: X | P7: E4X | Q7: ○ | S7: E4X | T7: 4 | V7: C | W7: 4 | X7: 7 | Y7: C47 | Z7: ○
B8: A | C8: 1 | D8: 8 | E8: A18 | F8: × | H8: A | I8: 1 | J8: 8 | K8: A18 | L8: × | N8: P1 | O8: X | P8: P1X | Q8: ○ | S8: E1A1 | T8: 5 | V8: C | W8: 4 | X8: 8 | Y8: C48 | Z8: ○
B9: A | C9: 1 | D9: 9 | E9: A19 | F9: ○ | H9: A | I9: 1 | J9: 9 | K9: A19 | L9: ○ | N9: P2 | O9: X | P9: P2X | Q9: ○ | S9: E3A1 | T9: 5 | V9: D | W9: 1 | X9: 2 | Y9: D12 | Z9: ○
B10: A | C10: 2 | D10: 1 | E10: A21 | F10: ○ | H10: A | I10: 2 | J10: 1 | K10: A21 | L10: ○ | N10: P3 | O10: X | P10: P3X | Q10: ○ | S10: E2A1 | T10: 6 | V10: D | W10: 1 | X10: 3 | Y10: D13 | Z10: ○
B11: A | C11: 2 | D11: 2 | E11: A22 | F11: ○ | H11: A | I11: 2 | J11: 2 | K11: A22 | L11: ○ | N11: P4 | O11: X | P11: P4X | Q11: ○ | S11: E4A1 | T11: 6 | V11: D | W11: 1 | X11: 7 | Y11: D17 | Z11: ×
B12: A | C12: 2 | D12: 3 | E12: A23 | F12: ○ | H12: A | I12: 2 | J12: 3 | K12: A23 | L12: ○ | N12: H1 | O12: X | P12: H1X | Q12: ○ | S12: P1X | T12: 7 | V12: D | W12: 1 | X12: 8 | Y12: D18 | Z12: ×
B13: A | C13: 2 | D13: 4 | E13: A24 | F13: × | H13: A | I13: 2 | J13: 4 | K13: A24 | L13: × | N13: H2 | O13: X | P13: H2X | Q13: ○ | S13: P2X | T13: 8 | V13: D | W13: 4 | X13: 2 | Y13: D42 | Z13: ×
B14: A | C14: 2 | D14: 5 | E14: A25 | F14: × | H14: A | I14: 2 | J14: 5 | K14: A25 | L14: × | N14: H3 | O14: X | P14: H3X | Q14: ○ | S14: P3X | T14: 9 | V14: D | W14: 4 | X14: 3 | Y14: D43 | Z14: ×
B15: A | C15: 2 | D15: 6 | E15: A26 | F15: × | H15: A | I15: 2 | J15: 6 | K15: A26 | L15: × | N15: T1 | O15: A1 | P15: T1A1 | Q15: × | S15: P4X | T15: 10 | V15: D | W15: 4 | X15: 7 | Y15: D47 | Z15: ○
B16: A | C16: 2 | D16: 7 | E16: A27 | F16: × | H16: A | I16: 2 | J16: 7 | K16: A27 | L16: × | N16: T2 | O16: A1 | P16: T2A1 | Q16: × | S16: P1A1 | T16: 11 | V16: D | W16: 4 | X16: 8 | Y16: D48 | Z16: ○
B17: A | C17: 2 | D17: 8 | E17: A28 | F17: × | H17: A | I17: 2 | J17: 8 | K17: A28 | L17: × | N17: Y1 | O17: A1 | P17: Y1A1 | Q17: ○ | S17: P2A1 | T17: 12 | V17: E | W17: 1 | X17: 2 | Y17: E12 | Z17: ○
B18: A | C18: 2 | D18: 9 | E18: A29 | F18: ○ | H18: A | I18: 2 | J18: 9 | K18: A29 | L18: ○ | N18: E1 | O18: A1 | P18: E1A1 | Q18: ○ | S18: P3A1 | T18: 13 | V18: E | W18: 1 | X18: 3 | Y18: E13 | Z18: ○
B19: A | C19: 3 | D19: 1 | E19: A31 | F19: × | H19: A | I19: 3 | J19: 1 | K19: A31 | L19: × | N19: E2 | O19: A1 | P19: E2A1 | Q19: ○ | S19: P4A1 | T19: 14 | V19: E | W19: 1 | X19: 7 | Y19: E17 | Z19: ×
B20: A | C20: 3 | D20: 2 | E20: A32 | F20: × | H20: A | I20: 3 | J20: 2 | K20: A32 | L20: × | N20: E3 | O20: A1 | P20: E3A1 | Q20: ○ | S20: H1X | T20: 15 | V20: E | W20: 1 | X20: 8 | Y20: E18 | Z20: ×
B21: A | C21: 3 | D21: 3 | E21: A33 | F21: × | H21: A | I21: 3 | J21: 3 | K21: A33 | L21: × | N21: E4 | O21: A1 | P21: E4A1 | Q21: ○ | S21: H1B1 | T21: 16 | V21: E | W21: 4 | X21: 2 | Y21: E42 | Z21: ×
B22: A | C22: 3 | D22: 4 | E22: A34 | F22: × | H22: A | I22: 3 | J22: 4 | K22: A34 | L22: × | N22: P1 | O22: A1 | P22: P1A1 | Q22: ○ | S22: H1B2 | T22: 16 | V22: E | W22: 4 | X22: 3 | Y22: E43 | Z22: ×
B23: A | C23: 3 | D23: 5 | E23: A35 | F23: × | H23: A | I23: 3 | J23: 5 | K23: A35 | L23: × | N23: P2 | O23: A1 | P23: P2A1 | Q23: ○ | S23: H2X | T23: 17 | V23: E | W23: 4 | X23: 7 | Y23: E47 | Z23: ○
B24: A | C24: 3 | D24: 6 | E24: A36 | F24: × | H24: A | I24: 3 | J24: 6 | K24: A36 | L24: × | N24: P3 | O24: A1 | P24: P3A1 | Q24: ○ | S24: H2B1 | T24: 18 | V24: E | W24: 4 | X24: 8 | Y24: E48 | Z24: ○
B25: A | C25: 3 | D25: 7 | E25: A37 | F25: × | H25: A | I25: 3 | J25: 7 | K25: A37 | L25: × | N25: P4 | O25: A1 | P25: P4A1 | Q25: ○ | S25: H2B2 | T25: 18
B26: A | C26: 3 | D26: 8 | E26: A38 | F26: × | H26: A | I26: 3 | J26: 8 | K26: A38 | L26: × | N26: H1 | O26: A1 | P26: H1A1 | Q26: × | S26: H3X | T26: 19
B27: A | C27: 3 | D27: 9 | E27: A39 | F27: × | H27: A | I27: 3 | J27: 9 | K27: A39 | L27: × | N27: H2 | O27: A1 | P27: H2A1 | Q27: × | S27: H3B1 | T27: 20
B28: A | C28: 4 | D28: 1 | E28: A41 | F28: × | H28: A | I28: 4 | J28: 1 | K28: A41 | L28: × | N28: H3 | O28: A1 | P28: H3A1 | Q28: × | S28: H3B2 | T28: 20
B29: A | C29: 4 | D29: 2 | E29: A42 | F29: × | H29: A | I29: 4 | J29: 2 | K29: A42 | L29: × | N29: T1 | O29: B1 | P29: T1B1 | Q29: ×
B30: A | C30: 4 | D30: 3 | E30: A43 | F30: × | H30: A | I30: 4 | J30: 3 | K30: A43 | L30: × | N30: T2 | O30: B1 | P30: T2B1 | Q30: ×
B31: A | C31: 4 | D31: 4 | E31: A44 | F31: × | H31: A | I31: 4 | J31: 4 | K31: A44 | L31: × | N31: Y1 | O31: B1 | P31: Y1B1 | Q31: ×
B32: A | C32: 4 | D32: 5 | E32: A45 | F32: × | H32: A | I32: 4 | J32: 5 | K32: A45 | L32: × | N32: E1 | O32: B1 | P32: E1B1 | Q32: ×
B33: A | C33: 4 | D33: 6 | E33: A46 | F33: × | H33: A | I33: 4 | J33: 6 | K33: A46 | L33: × | N33: E2 | O33: B1 | P33: E2B1 | Q33: ×
B34: A | C34: 4 | D34: 7 | E34: A47 | F34: × | H34: A | I34: 4 | J34: 7 | K34: A47 | L34: × | N34: E3 | O34: B1 | P34: E3B1 | Q34: ×
B35: A | C35: 4 | D35: 8 | E35: A48 | F35: × | H35: A | I35: 4 | J35: 8 | K35: A48 | L35: × | N35: E4 | O35: B1 | P35: E4B1 | Q35: ×
B36: A | C36: 4 | D36: 9 | E36: A49 | F36: × | H36: A | I36: 4 | J36: 9 | K36: A49 | L36: × | N36: P1 | O36: B1 | P36: P1B1 | Q36: ×
B37: B | C37: 1 | D37: 1 | E37: B11 | F37: ○ | H37: B | I37: 1 | J37: 1 | K37: B11 | L37: ○ | N37: P2 | O37: B1 | P37: P2B1 | Q37: ×
B38: B | C38: 1 | D38: 2 | E38: B12 | F38: ○ | H38: B | I38: 1 | J38: 2 | K38: B12 | L38: ○ | N38: P3 | O38: B1 | P38: P3B1 | Q38: ×
B39: B | C39: 1 | D39: 3 | E39: B13 | F39: ○ | H39: B | I39: 1 | J39: 3 | K39: B13 | L39: ○ | N39: P4 | O39: B1 | P39: P4B1 | Q39: ×
B40: B | C40: 1 | D40: 4 | E40: B14 | F40: × | H40: B | I40: 1 | J40: 4 | K40: B14 | L40: × | N40: H1 | O40: B1 | P40: H1B1 | Q40: ○
B41: B | C41: 1 | D41: 5 | E41: B15 | F41: × | H41: B | I41: 1 | J41: 5 | K41: B15 | L41: × | N41: H2 | O41: B1 | P41: H2B1 | Q41: ○
B42: B | C42: 1 | D42: 6 | E42: B16 | F42: × | H42: B | I42: 1 | J42: 6 | K42: B16 | L42: × | N42: H3 | O42: B1 | P42: H3B1 | Q42: ○
B43: B | C43: 1 | D43: 7 | E43: B17 | F43: × | H43: B | I43: 1 | J43: 7 | K43: B17 | L43: × | N43: T1 | O43: B2 | P43: T1B2 | Q43: ×
B44: B | C44: 1 | D44: 8 | E44: B18 | F44: × | H44: B | I44: 1 | J44: 8 | K44: B18 | L44: × | N44: T2 | O44: B2 | P44: T2B2 | Q44: ×
B45: B | C45: 1 | D45: 9 | E45: B19 | F45: ○ | H45: B | I45: 1 | J45: 9 | K45: B19 | L45: ○ | N45: Y1 | O45: B2 | P45: Y1B2 | Q45: ×
B46: B | C46: 2 | D46: 1 | E46: B21 | F46: ○ | H46: B | I46: 2 | J46: 1 | K46: B21 | L46: ○ | N46: E1 | O46: B2 | P46: E1B2 | Q46: ×
B47: B | C47: 2 | D47: 2 | E47: B22 | F47: ○ | H47: B | I47: 2 | J47: 2 | K47: B22 | L47: ○ | N47: E2 | O47: B2 | P47: E2B2 | Q47: ×
B48: B | C48: 2 | D48: 3 | E48: B23 | F48: ○ | H48: B | I48: 2 | J48: 3 | K48: B23 | L48: ○ | N48: E3 | O48: B2 | P48: E3B2 | Q48: ×
B49: B | C49: 2 | D49: 4 | E49: B24 | F49: × | H49: B | I49: 2 | J49: 4 | K49: B24 | L49: × | N49: E4 | O49: B2 | P49: E4B2 | Q49: ×
B50: B | C50: 2 | D50: 5 | E50: B25 | F50: × | H50: B | I50: 2 | J50: 5 | K50: B25 | L50: × | N50: P1 | O50: B2 | P50: P1B2 | Q50: ×
B51: B | C51: 2 | D51: 6 | E51: B26 | F51: × | H51: B | I51: 2 | J51: 6 | K51: B26 | L51: × | N51: P2 | O51: B2 | P51: P2B2 | Q51: ×
B52: B | C52: 2 | D52: 7 | E52: B27 | F52: × | H52: B | I52: 2 | J52: 7 | K52: B27 | L52: × | N52: P3 | O52: B2 | P52: P3B2 | Q52: ×
B53: B | C53: 2 | D53: 8 | E53: B28 | F53: × | H53: B | I53: 2 | J53: 8 | K53: B28 | L53: × | N53: P4 | O53: B2 | P53: P4B2 | Q53: ×
B54: B | C54: 2 | D54: 9 | E54: B29 | F54: ○ | H54: B | I54: 2 | J54: 9 | K54: B29 | L54: ○ | N54: H1 | O54: B2 | P54: H1B2 | Q54: ○
B55: B | C55: 3 | D55: 1 | E55: B31 | F55: × | H55: B | I55: 3 | J55: 1 | K55: B31 | L55: × | N55: H2 | O55: B2 | P55: H2B2 | Q55: ○
B56: B | C56: 3 | D56: 2 | E56: B32 | F56: × | H56: B | I56: 3 | J56: 2 | K56: B32 | L56: × | N56: H3 | O56: B2 | P56: H3B2 | Q56: ○
B57: B | C57: 3 | D57: 3 | E57: B33 | F57: × | H57: B | I57: 3 | J57: 3 | K57: B33 | L57: ×
B58: B | C58: 3 | D58: 4 | E58: B34 | F58: × | H58: B | I58: 3 | J58: 4 | K58: B34 | L58: ×
B59: B | C59: 3 | D59: 5 | E59: B35 | F59: × | H59: B | I59: 3 | J59: 5 | K59: B35 | L59: ×
B60: B | C60: 3 | D60: 6 | E60: B36 | F60: × | H60: B | I60: 3 | J60: 6 | K60: B36 | L60: ×
B61: B | C61: 3 | D61: 7 | E61: B37 | F61: × | H61: B | I61: 3 | J61: 7 | K61: B37 | L61: ×
B62: B | C62: 3 | D62: 8 | E62: B38 | F62: × | H62: B | I62: 3 | J62: 8 | K62: B38 | L62: ×
B63: B | C63: 3 | D63: 9 | E63: B39 | F63: × | H63: B | I63: 3 | J63: 9 | K63: B39 | L63: ×
B64: B | C64: 4 | D64: 1 | E64: B41 | F64: × | H64: B | I64: 4 | J64: 1 | K64: B41 | L64: ×
B65: B | C65: 4 | D65: 2 | E65: B42 | F65: × | H65: B | I65: 4 | J65: 2 | K65: B42 | L65: ×
B66: B | C66: 4 | D66: 3 | E66: B43 | F66: × | H66: B | I66: 4 | J66: 3 | K66: B43 | L66: ×
B67: B | C67: 4 | D67: 4 | E67: B44 | F67: × | H67: B | I67: 4 | J67: 4 | K67: B44 | L67: ×
B68: B | C68: 4 | D68: 5 | E68: B45 | F68: × | H68: B | I68: 4 | J68: 5 | K68: B45 | L68: ×
B69: B | C69: 4 | D69: 6 | E69: B46 | F69: × | H69: B | I69: 4 | J69: 6 | K69: B46 | L69: ×
B70: B | C70: 4 | D70: 7 | E70: B47 | F70: × | H70: B | I70: 4 | J70: 7 | K70: B47 | L70: ×
B71: B | C71: 4 | D71: 8 | E71: B48 | F71: × | H71: B | I71: 4 | J71: 8 | K71: B48 | L71: ×
B72: B | C72: 4 | D72: 9 | E72: B49 | F72: × | H72: B | I72: 4 | J72: 9 | K72: B49 | L72: ×
B73: C | C73: 1 | D73: 1 | E73: C11 | F73: × | H73: C | I73: 1 | J73: 1 | K73: C11 | L73: ×
B74: C | C74: 1 | D74: 2 | E74: C12 | F74: × | H74: C | I74: 1 | J74: 2 | K74: C12 | L74: ×
B75: C | C75: 1 | D75: 3 | E75: C13 | F75: × | H75: C | I75: 1 | J75: 3 | K75: C13 | L75: ×
B76: C | C76: 1 | D76: 4 | E76: C14 | F76: × | H76: C | I76: 1 | J76: 4 | K76: C14 | L76: ×
B77: C | C77: 1 | D77: 5 | E77: C15 | F77: × | H77: C | I77: 1 | J77: 5 | K77: C15 | L77: ×
B78: C | C78: 1 | D78: 6 | E78: C16 | F78: × | H78: C | I78: 1 | J78: 6 | K78: C16 | L78: ×
B79: C | C79: 1 | D79: 7 | E79: C17 | F79: × | H79: C | I79: 1 | J79: 7 | K79: C17 | L79: ×
B80: C | C80: 1 | D80: 8 | E80: C18 | F80: × | H80: C | I80: 1 | J80: 8 | K80: C18 | L80: ×
B81: C | C81: 1 | D81: 9 | E81: C19 | F81: × | H81: C | I81: 1 | J81: 9 | K81: C19 | L81: ×
B82: C | C82: 2 | D82: 1 | E82: C21 | F82: × | H82: C | I82: 2 | J82: 1 | K82: C21 | L82: ×
B83: C | C83: 2 | D83: 2 | E83: C22 | F83: × | H83: C | I83: 2 | J83: 2 | K83: C22 | L83: ×
B84: C | C84: 2 | D84: 3 | E84: C23 | F84: × | H84: C | I84: 2 | J84: 3 | K84: C23 | L84: ×
B85: C | C85: 2 | D85: 4 | E85: C24 | F85: × | H85: C | I85: 2 | J85: 4 | K85: C24 | L85: ×
B86: C | C86: 2 | D86: 5 | E86: C25 | F86: × | H86: C | I86: 2 | J86: 5 | K86: C25 | L86: ×
B87: C | C87: 2 | D87: 6 | E87: C26 | F87: × | H87: C | I87: 2 | J87: 6 | K87: C26 | L87: ×
B88: C | C88: 2 | D88: 7 | E88: C27 | F88: × | H88: C | I88: 2 | J88: 7 | K88: C27 | L88: ×
B89: C | C89: 2 | D89: 8 | E89: C28 | F89: × | H89: C | I89: 2 | J89: 8 | K89: C28 | L89: ×
B90: C | C90: 2 | D90: 9 | E90: C29 | F90: × | H90: C | I90: 2 | J90: 9 | K90: C29 | L90: ×
B91: C | C91: 3 | D91: 1 | E91: C31 | F91: × | H91: C | I91: 3 | J91: 1 | K91: C31 | L91: ×
B92: C | C92: 3 | D92: 2 | E92: C32 | F92: × | H92: C | I92: 3 | J92: 2 | K92: C32 | L92: ×
B93: C | C93: 3 | D93: 3 | E93: C33 | F93: × | H93: C | I93: 3 | J93: 3 | K93: C33 | L93: ×
B94: C | C94: 3 | D94: 4 | E94: C34 | F94: × | H94: C | I94: 3 | J94: 4 | K94: C34 | L94: ×
B95: C | C95: 3 | D95: 5 | E95: C35 | F95: ○ | H95: C | I95: 3 | J95: 5 | K95: C35 | L95: ○
B96: C | C96: 3 | D96: 6 | E96: C36 | F96: ○ | H96: C | I96: 3 | J96: 6 | K96: C36 | L96: ○
B97: C | C97: 3 | D97: 7 | E97: C37 | F97: ○ | H97: C | I97: 3 | J97: 7 | K97: C37 | L97: ○
B98: C | C98: 3 | D98: 8 | E98: C38 | F98: ○ | H98: C | I98: 3 | J98: 8 | K98: C38 | L98: ○
B99: C | C99: 3 | D99: 9 | E99: C39 | F99: × | H99: C | I99: 3 | J99: 9 | K99: C39 | L99: ×
B100: C | C100: 4 | D100: 1 | E100: C41 | F100: × | H100: C | I100: 4 | J100: 1 | K100: C41 | L100: ×
B101: C | C101: 4 | D101: 2 | E101: C42 | F101: × | H101: C | I101: 4 | J101: 2 | K101: C42 | L101: ×
B102: C | C102: 4 | D102: 3 | E102: C43 | F102: × | H102: C | I102: 4 | J102: 3 | K102: C43 | L102: ×
B103: C | C103: 4 | D103: 4 | E103: C44 | F103: × | H103: C | I103: 4 | J103: 4 | K103: C44 | L103: ×
B104: C | C104: 4 | D104: 5 | E104: C45 | F104: ○ | H104: C | I104: 4 | J104: 5 | K104: C45 | L104: ○
B105: C | C105: 4 | D105: 6 | E105: C46 | F105: ○ | H105: C | I105: 4 | J105: 6 | K105: C46 | L105: ○
B106: C | C106: 4 | D106: 7 | E106: C47 | F106: ○ | H106: C | I106: 4 | J106: 7 | K106: C47 | L106: ○
B107: C | C107: 4 | D107: 8 | E107: C48 | F107: ○ | H107: C | I107: 4 | J107: 8 | K107: C48 | L107: ○
B108: C | C108: 4 | D108: 9 | E108: C49 | F108: × | H108: C | I108: 4 | J108: 9 | K108: C49 | L108: ×
B109: D | C109: 1 | D109: 1 | E109: D11 | F109: × | H109: D | I109: 1 | J109: 1 | K109: D11 | L109: ×
B110: D | C110: 1 | D110: 2 | E110: D12 | F110: × | H110: D | I110: 1 | J110: 2 | K110: D12 | L110: ×
B111: D | C111: 1 | D111: 3 | E111: D13 | F111: × | H111: D | I111: 1 | J111: 3 | K111: D13 | L111: ×
B112: D | C112: 1 | D112: 4 | E112: D14 | F112: × | H112: D | I112: 1 | J112: 4 | K112: D14 | L112: ×
B113: D | C113: 1 | D113: 5 | E113: D15 | F113: × | H113: D | I113: 1 | J113: 5 | K113: D15 | L113: ×
B114: D | C114: 1 | D114: 6 | E114: D16 | F114: × | H114: D | I114: 1 | J114: 6 | K114: D16 | L114: ×
B115: D | C115: 1 | D115: 7 | E115: D17 | F115: × | H115: D | I115: 1 | J115: 7 | K115: D17 | L115: ×
B116: D | C116: 1 | D116: 8 | E116: D18 | F116: × | H116: D | I116: 1 | J116: 8 | K116: D18 | L116: ×
B117: D | C117: 1 | D117: 9 | E117: D19 | F117: × | H117: D | I117: 1 | J117: 9 | K117: D19 | L117: ×
B118: D | C118: 2 | D118: 1 | E118: D21 | F118: × | H118: D | I118: 2 | J118: 1 | K118: D21 | L118: ×
B119: D | C119: 2 | D119: 2 | E119: D22 | F119: × | H119: D | I119: 2 | J119: 2 | K119: D22 | L119: ×
B120: D | C120: 2 | D120: 3 | E120: D23 | F120: × | H120: D | I120: 2 | J120: 3 | K120: D23 | L120: ×
B121: D | C121: 2 | D121: 4 | E121: D24 | F121: × | H121: D | I121: 2 | J121: 4 | K121: D24 | L121: ×
B122: D | C122: 2 | D122: 5 | E122: D25 | F122: × | H122: D | I122: 2 | J122: 5 | K122: D25 | L122: ×
B123: D | C123: 2 | D123: 6 | E123: D26 | F123: × | H123: D | I123: 2 | J123: 6 | K123: D26 | L123: ×
B124: D | C124: 2 | D124: 7 | E124: D27 | F124: × | H124: D | I124: 2 | J124: 7 | K124: D27 | L124: ×
B125: D | C125: 2 | D125: 8 | E125: D28 | F125: × | H125: D | I125: 2 | J125: 8 | K125: D28 | L125: ×
B126: D | C126: 2 | D126: 9 | E126: D29 | F126: × | H126: D | I126: 2 | J126: 9 | K126: D29 | L126: ×
B127: D | C127: 3 | D127: 1 | E127: D31 | F127: × | H127: D | I127: 3 | J127: 1 | K127: D31 | L127: ×
B128: D | C128: 3 | D128: 2 | E128: D32 | F128: × | H128: D | I128: 3 | J128: 2 | K128: D32 | L128: ×
B129: D | C129: 3 | D129: 3 | E129: D33 | F129: × | H129: D | I129: 3 | J129: 3 | K129: D33 | L129: ×
B130: D | C130: 3 | D130: 4 | E130: D34 | F130: × | H130: D | I130: 3 | J130: 4 | K130: D34 | L130: ×
B131: D | C131: 3 | D131: 5 | E131: D35 | F131: ○ | H131: D | I131: 3 | J131: 5 | K131: D35 | L131: ○
B132: D | C132: 3 | D132: 6 | E132: D36 | F132: ○ | H132: D | I132: 3 | J132: 6 | K132: D36 | L132: ○
B133: D | C133: 3 | D133: 7 | E133: D37 | F133: ○ | H133: D | I133: 3 | J133: 7 | K133: D37 | L133: ○
B134: D | C134: 3 | D134: 8 | E134: D38 | F134: ○ | H134: D | I134: 3 | J134: 8 | K134: D38 | L134: ○
B135: D | C135: 3 | D135: 9 | E135: D39 | F135: × | H135: D | I135: 3 | J135: 9 | K135: D39 | L135: ×
B136: D | C136: 4 | D136: 1 | E136: D41 | F136: × | H136: D | I136: 4 | J136: 1 | K136: D41 | L136: ×
B137: D | C137: 4 | D137: 2 | E137: D42 | F137: × | H137: D | I137: 4 | J137: 2 | K137: D42 | L137: ×
B138: D | C138: 4 | D138: 3 | E138: D43 | F138: × | H138: D | I138: 4 | J138: 3 | K138: D43 | L138: ×
B139: D | C139: 4 | D139: 4 | E139: D44 | F139: × | H139: D | I139: 4 | J139: 4 | K139: D44 | L139: ×
B140: D | C140: 4 | D140: 5 | E140: D45 | F140: ○ | H140: D | I140: 4 | J140: 5 | K140: D45 | L140: ○
B141: D | C141: 4 | D141: 6 | E141: D46 | F141: ○ | H141: D | I141: 4 | J141: 6 | K141: D46 | L141: ○
B142: D | C142: 4 | D142: 7 | E142: D47 | F142: ○ | H142: D | I142: 4 | J142: 7 | K142: D47 | L142: ○
B143: D | C143: 4 | D143: 8 | E143: D48 | F143: ○ | H143: D | I143: 4 | J143: 8 | K143: D48 | L143: ○
B144: D | C144: 4 | D144: 9 | E144: D49 | F144: × | H144: D | I144: 4 | J144: 9 | K144: D49 | L144: ×
B145: E | C145: 1 | D145: 1 | E145: E11 | F145: × | H145: G | I145: 1 | J145: 1 | K145: G11 | L145: ○
B146: E | C146: 1 | D146: 2 | E146: E12 | F146: × | H146: G | I146: 1 | J146: 2 | K146: G12 | L146: ○
B147: E | C147: 1 | D147: 3 | E147: E13 | F147: × | H147: G | I147: 1 | J147: 3 | K147: G13 | L147: ○
B148: E | C148: 1 | D148: 4 | E148: E14 | F148: ○ | H148: G | I148: 1 | J148: 4 | K148: G14 | L148: ×
B149: E | C149: 1 | D149: 5 | E149: E15 | F149: × | H149: G | I149: 1 | J149: 5 | K149: G15 | L149: ×
B150: E | C150: 1 | D150: 6 | E150: E16 | F150: × | H150: G | I150: 1 | J150: 6 | K150: G16 | L150: ×
B151: E | C151: 1 | D151: 7 | E151: E17 | F151: × | H151: G | I151: 1 | J151: 7 | K151: G17 | L151: ×
B152: E | C152: 1 | D152: 8 | E152: E18 | F152: × | H152: G | I152: 1 | J152: 8 | K152: G18 | L152: ×
B153: E | C153: 1 | D153: 9 | E153: E19 | F153: × | H153: G | I153: 1 | J153: 9 | K153: G19 | L153: ○
B154: E | C154: 2 | D154: 1 | E154: E21 | F154: × | H154: G | I154: 2 | J154: 1 | K154: G21 | L154: ○
B155: E | C155: 2 | D155: 2 | E155: E22 | F155: × | H155: G | I155: 2 | J155: 2 | K155: G22 | L155: ○
B156: E | C156: 2 | D156: 3 | E156: E23 | F156: × | H156: G | I156: 2 | J156: 3 | K156: G23 | L156: ○
B157: E | C157: 2 | D157: 4 | E157: E24 | F157: × | H157: G | I157: 2 | J157: 4 | K157: G24 | L157: ×
B158: E | C158: 2 | D158: 5 | E158: E25 | F158: × | H158: G | I158: 2 | J158: 5 | K158: G25 | L158: ×
B159: E | C159: 2 | D159: 6 | E159: E26 | F159: × | H159: G | I159: 2 | J159: 6 | K159: G26 | L159: ×
B160: E | C160: 2 | D160: 7 | E160: E27 | F160: × | H160: G | I160: 2 | J160: 7 | K160: G27 | L160: ×
B161: E | C161: 2 | D161: 8 | E161: E28 | F161: × | H161: G | I161: 2 | J161: 8 | K161: G28 | L161: ×
B162: E | C162: 2 | D162: 9 | E162: E29 | F162: × | H162: G | I162: 2 | J162: 9 | K162: G29 | L162: ○
B163: E | C163: 3 | D163: 1 | E163: E31 | F163: × | H163: G | I163: 3 | J163: 1 | K163: G31 | L163: ×
B164: E | C164: 3 | D164: 2 | E164: E32 | F164: × | H164: G | I164: 3 | J164: 2 | K164: G32 | L164: ×
B165: E | C165: 3 | D165: 3 | E165: E33 | F165: × | H165: G | I165: 3 | J165: 3 | K165: G33 | L165: ×
B166: E | C166: 3 | D166: 4 | E166: E34 | F166: × | H166: G | I166: 3 | J166: 4 | K166: G34 | L166: ×
B167: E | C167: 3 | D167: 5 | E167: E35 | F167: × | H167: G | I167: 3 | J167: 5 | K167: G35 | L167: ×
B168: E | C168: 3 | D168: 6 | E168: E36 | F168: × | H168: G | I168: 3 | J168: 6 | K168: G36 | L168: ×
B169: E | C169: 3 | D169: 7 | E169: E37 | F169: × | H169: G | I169: 3 | J169: 7 | K169: G37 | L169: ×
B170: E | C170: 3 | D170: 8 | E170: E38 | F170: × | H170: G | I170: 3 | J170: 8 | K170: G38 | L170: ×
B171: E | C171: 3 | D171: 9 | E171: E39 | F171: × | H171: G | I171: 3 | J171: 9 | K171: G39 | L171: ×
B172: E | C172: 4 | D172: 1 | E172: E41 | F172: × | H172: G | I172: 4 | J172: 1 | K172: G41 | L172: ×
B173: E | C173: 4 | D173: 2 | E173: E42 | F173: × | H173: G | I173: 4 | J173: 2 | K173: G42 | L173: ×
B174: E | C174: 4 | D174: 3 | E174: E43 | F174: × | H174: G | I174: 4 | J174: 3 | K174: G43 | L174: ×
B175: E | C175: 4 | D175: 4 | E175: E44 | F175: ○ | H175: G | I175: 4 | J175: 4 | K175: G44 | L175: ×
B176: E | C176: 4 | D176: 5 | E176: E45 | F176: × | H176: G | I176: 4 | J176: 5 | K176: G45 | L176: ×
B177: E | C177: 4 | D177: 6 | E177: E46 | F177: × | H177: G | I177: 4 | J177: 6 | K177: G46 | L177: ×
B178: E | C178: 4 | D178: 7 | E178: E47 | F178: × | H178: G | I178: 4 | J178: 7 | K178: G47 | L178: ×
B179: E | C179: 4 | D179: 8 | E179: E48 | F179: × | H179: G | I179: 4 | J179: 8 | K179: G48 | L179: ×
B180: E | C180: 4 | D180: 9 | E180: E49 | F180: × | H180: G | I180: 4 | J180: 9 | K180: G49 | L180: ×
B181: F | C181: 1 | D181: 1 | E181: F11 | F181: × | H181: H | I181: 1 | J181: 1 | K181: H11 | L181: ×
B182: F | C182: 1 | D182: 2 | E182: F12 | F182: × | H182: H | I182: 1 | J182: 2 | K182: H12 | L182: ×
B183: F | C183: 1 | D183: 3 | E183: F13 | F183: × | H183: H | I183: 1 | J183: 3 | K183: H13 | L183: ×
B184: F | C184: 1 | D184: 4 | E184: F14 | F184: ○ | H184: H | I184: 1 | J184: 4 | K184: H14 | L184: ×
B185: F | C185: 1 | D185: 5 | E185: F15 | F185: × | H185: H | I185: 1 | J185: 5 | K185: H15 | L185: ×
B186: F | C186: 1 | D186: 6 | E186: F16 | F186: × | H186: H | I186: 1 | J186: 6 | K186: H16 | L186: ×
B187: F | C187: 1 | D187: 7 | E187: F17 | F187: × | H187: H | I187: 1 | J187: 7 | K187: H17 | L187: ×
B188: F | C188: 1 | D188: 8 | E188: F18 | F188: × | H188: H | I188: 1 | J188: 8 | K188: H18 | L188: ×
B189: F | C189: 1 | D189: 9 | E189: F19 | F189: × | H189: H | I189: 1 | J189: 9 | K189: H19 | L189: ×
B190: F | C190: 2 | D190: 1 | E190: F21 | F190: × | H190: H | I190: 2 | J190: 1 | K190: H21 | L190: ×
B191: F | C191: 2 | D191: 2 | E191: F22 | F191: × | H191: H | I191: 2 | J191: 2 | K191: H22 | L191: ×
B192: F | C192: 2 | D192: 3 | E192: F23 | F192: × | H192: H | I192: 2 | J192: 3 | K192: H23 | L192: ×
B193: F | C193: 2 | D193: 4 | E193: F24 | F193: × | H193: H | I193: 2 | J193: 4 | K193: H24 | L193: ×
B194: F | C194: 2 | D194: 5 | E194: F25 | F194: × | H194: H | I194: 2 | J194: 5 | K194: H25 | L194: ×
B195: F | C195: 2 | D195: 6 | E195: F26 | F195: × | H195: H | I195: 2 | J195: 6 | K195: H26 | L195: ×
B196: F | C196: 2 | D196: 7 | E196: F27 | F196: × | H196: H | I196: 2 | J196: 7 | K196: H27 | L196: ×
B197: F | C197: 2 | D197: 8 | E197: F28 | F197: × | H197: H | I197: 2 | J197: 8 | K197: H28 | L197: ×
B198: F | C198: 2 | D198: 9 | E198: F29 | F198: × | H198: H | I198: 2 | J198: 9 | K198: H29 | L198: ×
B199: F | C199: 3 | D199: 1 | E199: F31 | F199: × | H199: H | I199: 3 | J199: 1 | K199: H31 | L199: ×
B200: F | C200: 3 | D200: 2 | E200: F32 | F200: × | H200: H | I200: 3 | J200: 2 | K200: H32 | L200: ×
... 16 more rows

Sheet Notes (hidden)
A1: Notes:
A3: 1) Select an option from the drop down list from top-to-bottom, beginning with the motor size.
A5: 2) A requirement displayed with gray shading means that it is not available.
A7: 3) A requirement which is under development is marked with a star "★" on the right.
A9: 4) The background color of the cell with the drop down list changes to red when an unavailable option(requirement) is selected.
A11: 5) The background color of the cell with the drop down list changes to yellow when an option(requirement) under development is selected.
A13: 6) If the necessary option is left unselected, the background color of the cell in the model code row changes to red.
